{"text_format":"1","workbook":"xlsx","n_sheets":8,"sheets":["Prompt","C100","C200","C300","C400","C500","C600","Enviar"],"not_rendered":{"charts":0,"images":6,"macros":1,"external_links":1,"defined_names":1,"comments":1,"pivot_tables":0},"unopened":[],"bounds":{"document_bytes":16777216,"sheet_cells":100000,"rows_first":2000,"rows_last":500,"rows_between":2000,"halvings":0,"cell_chars":16384,"cell_head_chars":4096},"cells_cut":0,"cells_raw":0,"read":"whole","date_system":"1900"}

{"sheet":"Prompt","index":0,"n_rows":79,"n_cols":4,"rows_kept":79,"cut":false,"hidden":true,"merged":[[1,3,2,6],[4,1,6,8],[43,1,44,8],[78,1,79,8],[9,1,10,8]]}
[]
[null,null,null,"¡ATENCIÓN!"]
[]
[]
[null,"Para hacer uso de las funcionalidades de esta Cédula Electrónica debe habilitar macros"]
[]
[]
[]
[]
[null,"Si utiliza Excel 2013 siga el siguiente procedimiento:"]
[]
[]
[]
[]
[]
[]
[]
[]
[]
[]
[]
[]
[]
[]
[]
[]
[]
[]
[]
[]
[]
[]
[]
[]
[]
[]
[]
[]
[]
[]
[]
[]
[]
[null,"Si utiliza Excel 2007 siga el siguiente procedimiento:"]
[]
[]
[]
[]
[]
[]
[]
[]
[]
[]
[]
[]
[]
[]
[]
[]
[]
[]
[]
[]
[]
[]
[]
[]
[]
[]
[]
[]
[]
[]
[]
[]
[]
[]
[null,"Si utiliza Excel 2000, 2002, 2003 siga el siguiente procedimiento:"]

{"sheet":"C100","index":1,"n_rows":189,"n_cols":21,"rows_kept":189,"cut":false,"hidden":false,"merged":[[23,1,23,22],[1,4,1,18],[2,4,2,18],[3,4,3,18],[2,19,4,21],[1,19,1,21],[28,5,28,20],[30,5,30,20],[26,19,26,20],[149,18,149,19],[120,5,120,9],[121,5,121,9],[102,10,103,10],[104,10,105,10],[26,5,26,7],[106,10,107,10],[39,1,39,22],[50,5,50,10],[94,16,94,20],[92,3,92,9],[93,10,94,10],[104,16,104,20],[72,16,72,21],[152,18,152,19],[147,13,148,13],[147,14,148,16],[147,18,147,19],[147,20,148,20],[150,18,150,19],[151,18,151,19],[120,16,120,21],[156,7,156,10],[167,5,167,9],[95,10,96,10],[97,10,98,10],[99,10,100,10]]}
[]
[null,null,null,null,"CENSO EDUCATIVO 2022",null,null,null,null,null,null,null,null,null,null,null,null,null,null,"cédula"]
[null,null,null,null,"EDUCACIÓN BÁSICA ESPECIAL",null,null,null,null,null,null,null,null,null,null,null,null,null,null,"8AP"]
[null,null,null,null,"PRIMARIA"]
[null,"Versión :","1 - (32 y 64 bits)"]
[null,"INSTRUCCIONES DEL FORMATO ELECTRÓNICO "]
[]
[]
[]
[]
[]
[]
[]
[]
[]
[]
[]
[]
[]
[]
[]
[]
[]
[null,"IDENTIFICACIÓN DEL SERVICIO EDUCATIVO"]
[]
[]
[null,"1. CÓDIGO MODULAR :",null,null,null,null,null,null,null,null,null,null,null,null,null,null,null,"2. CÓDIGO DE LOCAL EDUCATIVO :"]
[]
[null,"3. NOMBRE DEL SERVICIO :"]
[]
[null,"4. DISTRITO :"]
[]
[]
[]
[]
[]
[null,"GESTIÓN DE LA INSTITUCIÓN EDUCATIVA :",null,null,null,null,null,null,null," 1 - Pública de gestión directa",null,null,null,null," 2 - Pública de gestión privada",null,null,null,null," 3 - Privada"]
[]
[]
[null,"100. CARACTERÍSTICAS DEL SERVICIO EDUCATIVO"]
[]
[null,"101. EN LOS ÚLTIMOS TRES MESES, ¿QUÉ SERVICIOS SE OFRECIERON EN ESTE",null,null,null,null,null,null,null,null,null,null,"105. EL SERVICIO/NIVEL EDUCATIVO ¿CUENTA CON UN PLAN DE TUTORÍA Y "]
[null,null,"SERVICIO/NIVEL EDUCATIVO ?",null,null,null,null,null,null,null,null,null,"ORIENTACIÓN EDUCATIVA (PLAN DE TUTORÍA Y TRABAJO CON FAMILIAS)?"]
[null,null,"(Marque con un aspa “X” uno o más casilleros)"]
[]
[null,null,null,null,"Qali Warma"]
[null,null,null,null,"Cuna más",null,null,null,null,null,null,null,null,"Sí",null,"No  "]
[null,null,null,null,"Control de Crecimiento y Desarrollo"]
[null,null,null,null,"Vacunación"]
[null,null,null,null,"Despistaje de anemia",null,null,null,null,null,null,null,"106. ¿EL SERVICIO/NIVEL EDUCATIVO CUENTA CON NORMAS DE CONVIVENCIA?"]
[null,null,null,null,"Otro"]
[null,null,null,null,"Ninguno"]
[]
[null,"102.  ¿EL SERVICIO/NIVEL EDUCATIVO CUENTA CON DOCUMENTO DE GESTIÓN?",null,null,null,null,null,null,null,null,null,null,null,"Sí",null,"No  "]
[]
[null,null,"Sí",null,null,null,"No  "]
[null,null,null,null,null,null,null,null,null,null,null,null,"107. EL SERVICIO/NIVEL EDUCATIVO QUE DIRIGE, ¿DURANTE EL PRESENTE AÑO "]
[null,"103. ¿CON QUÉ DOCUMENTOS DE GESTIÓN CUENTA EL SERVICIO/NIVEL",null,null,null,null,null,null,null,null,null,null,"HA RECIBIDO O VIENE RECIBIENDO APOYO DE ALGUNA EMPRESA PRIVADA O"]
[null,null,"EDUCATIVO, ANTES DEL INICIO DEL AÑO ESCOLAR?",null,null,null,null,null,null,null,null,null,"DE ALGUNA ONG EN TEMAS DE MEJORA DE INFRAESTRUCTURA, MOBILIARIO "]
[null,null,null,null,null,null,null,null,null,null,null,null,"Y EQUIPAMIENTO?"]
[null,null,null,null,"Proyecto educativo institucional (PEI)"]
[null,null,null,null,"Plan anual de trabajo (PAT)"]
[null,null,null,null,"Proyecto curricular de la Institución Educativa (PCI)",null,null,null,null,null,null,null,null,"Sí",null,"No  ",null,null,"Pase a la pregunta 109."]
[null,null,null,null,"Reglamento interno (RI)"]
[]
[null,"104. EL SERVICIO/NIVEL EDUCATIVO ¿PLANIFICÓ ACTIVIDADES EN EL LOS",null,null,null,null,null,null,null,null,null,null,"108. INDIQUE EL TIPO DE APOYO QUE HA RECIBIDO DE LA EMPRESA PRIVADA U"]
[null,null,"DOCUMENTOS DE GESTIÓN?",null,null,null,null,null,null,null,null,null,"ONG MENCIONADA EN SU RESPUESTA ANTERIOR"]
[null,null,null,null,null,null,null,null,null,null,null,null,null,"(Marque con un aspa “X” uno o más casilleros)"]
[null,null,null,null,null,null,"(Marque con un aspa “X” uno o más casilleros)"]
[null,null,"Sí",null,null,null,null,null,null,null,null,null,null,null,"","Infraestructura"]
[null,null,null,null,null,null,null,"","Tutoría",null,null,null,null,null,"","Mobiliario"]
[null,null,null,null,null,null,null,"","Trabajo con familias",null,null,null,null,null,"","Equipamiento"]
[null,null,"No  ",null,null,null,null,"","Convivencias",null,null,null,null,null,"","Otro",""]
[]
[]
[null,"ACOMPAÑAMIENTO Y SOPORTE PEDAGÓGICO"]
[null,"109. DESDE EL INICIO DEL AÑO ESCOLAR 2021 HASTA LA FECHA DE REPORTE DEL",null,null,null,null,null,null,null,null,null,null,"116. EN EL PRESENTE AÑO 2022, EL PERSONAL DIRECTIVO DE ESTE SERVICIO/NIVEL"]
[null,null,"CENSO EDUCATIVO EL SERVICIO/NIVEL EDUCATIVO, ¿HA RECIBIDO COMUNICACIÓN",null,null,null,null,null,null,null,null,null,"EDUCATIVO ¿BRINDA SOPORTE Y APOYO A LOS PROFESIONALES DOCENTES Y NO"]
[null,null,"O PARTICIPACIÓN PRESENCIAL O VIRTUAL/REMOTA DEL ESPECIALISTA",null,null,null,null,null,null,null,null,null,"DOCENTES EN TORNO A SU DESEMPEÑO EN EL MARCO DEL ACOMPAÑAMIENTO"]
[null,null,"PEDAGÓGICO DE LA UGEL, CON LA FINALIDAD DE BRINDAR ASISTENCIA TÉCNICA?",null,null,null,null,null,null,null,null,null,"PEDAGÓGICO Y ESPACIOS DE TRABAJO COLEGIADO?"]
[]
[null,null,"Sí",null,null,"¿Cuántas veces?",null,null,null,null,null,null,null,"Sí",null," No  ",null,null,"Pase a la pregunta 118."]
[null,null,null,null,null,null,"Presencial:"]
[null,null,null,null,null,null,"Virtual/Remota:"]
[null,null,null,null,null,null,null,null,null,null,null,null,"117. ¿QUÉ TEMAS HAN SIDO ABORDADOS MAYORITARIAMENTE POR EL EQUIPO"]
[null,null," No  ",null,null,"Pase a la pregunta 111.",null,null,null,null,null,null,"DIRECTIVO DURANTE LAS SESIONES DE SOPORTE Y APOYO A LOS DOCENTES"]
[null,null,null,null,null,null,null,null,null,null,null,null,"EN EL MARCO DEL ACOMPAÑAMIENTO PEDAGÓGICO Y ESPACIOS DE TRABAJO"]
[null,null,null,null,null,null,null,null,null,null,null,null,"COLEGIADO?",null,null,"(Marque con un aspa “X” una o más opciones)"]
[null,"110. ¿CUÁLES DE LAS SIGUIENTES ACCIONES HA REALIZADO EL ESPECIALISTA"]
[null,null,"PEDAGÓGICO AL MOMENTO DE BRINDAR LA ASISTENCIA TÉCNICA AL",null,null,null,null,null,null,null,null,null,null,null,"Planificación curricular"]
[null,null,"SERVICIO/NIVEL EDUCATIVO?",null,null,null,null,null,null,null,null,null,null,null,"Conducción de los aprendizajes"]
[null,null,null,null,null,null,null,null,null,null,null,null,null,null,"Como brindar acompañamiento socioafectivo y cognitivo"]
[null,null,"NRO.","ACCIONES",null,null,null,null,null,null," SI - NO",null,null,null,"Uso de los recursos y materiales educativos para atender la diversidad"]
[null,null,1,"Pregunto sobre las necesidades y demandas pedagógicas del",null,null,null,null,null,null,null,null,null,null,"Fortalecimiento del uso de TIC"]
[null,null,null,"servicio/nivel educativo",null,null,null,null,null,null,null,null,null,null,"Otros temas"]
[null,null,2,"Observó alguna sesión o actividades de aprendizaje, ya sea de"]
[null,null,null,"manera presencial o virtual/remota (por lo menos una vez)"]
[null,null,3,"Sostuvó un clima de confianza y proximidad durante sus acciones",null,null,null,null,null,null,null,null,"118. EL SERVICIO/NIVEL EDUCATIVO, ¿ DESARROLLA LAS SIGUIENTES ESTRATEGIAS"]
[null,null,null,"de asistencia técnica con este servicio/ nivel educativo",null,null,null,null,null,null,null,null,null,"DE ACOMPAÑAMIENTO?"]
[null,null,4,"Generó algún espacio para que el director(a) del servicio/nivel",null,null,null,null,null,null,null,null,null,null,null,null,null,null,null,"¿Cuántos?"]
[null,null,null,"educativo autoevalúe su práctica",null,null,null,null,null,null,null,null,null,null,null,null,null,null,null,null,"de 1 a 4 por área"]
[null,null,5,"Escuchó y respondió las dudas y consultas realizadas por usted",null,null,null,null,null,null,null,null,null,null,"Visita en aula",null,null,null,null,null,"de 4 a 8 por área"]
[null,null,6,"Las orientaciones brindadas atendieron las necesidades y",null,null,null,null,null,null,null,null,null,null,"Grupos de Interaprendizaje (GIA)",null,null,null,null,null,"Más de 8 por área"]
[null,null,null,"demandas señaladas",null,null,null,null,null,null,null,null,null,null,"Talleres"]
[null,null,7,"Brindó orientaciones para la mejora de las prácticas pedagógicas",null,null,null,null,null,null,null,null,null,null,"Otros"]
[null,null,null,"y de gestión acorde al enfoque por competencias."]
[null,null,8,"Sugirió estrategias pedagógicas contextualizadas para mejorar las"]
[null,null,null,"prácticas docentes"]
[null,null,9,"Dio a conocer las fortalezas del servicio / nivel educativo",null,null,null,null,null,null,null,null,"119. EL SERVICIO/NIVEL EDUCATIVO, ¿REALIZA ACTIVIDADES CON FAMILIAS Y"]
[null,null,10,"Se asumieron compromisos y/o acuerdos para la mejora",null,null,null,null,null,null,null,null,null,"COMUNIDAD QUE AYUDEN A LA PROMOCIÓN DE UN AMBIENTE INSTITUCIONAL"]
[null,null,null,null,null,null,null,null,null,null,{"$f":"COUNTIF(K94:K110,\"SI\")+COUNTIF(K94:K110,\"NO\")","v":0},null,null,"FAVORABLE PARA LA ATENCIÓN DE LA DIVERSIDAD?"]
[null,"111. EL SERVICIO/NIVEL EDUCATIVO, EN EL AÑO 2022 Y HASTA EL REPORTE DEL"]
[null,null,"CENSO EDUCATIVO 2021, ¿HA RECIBIDO ALGÚN TIPO DE ACOMPAÑAMIENTO",null,null,null,null,null,null,null,null,null,null,"Sí",null," No  ",null,null,null,"Pase a la pregunta 121."]
[null,null,"DIRIGIDO AL DIRECTIVO?"]
[null,null,null,null,null,null,null,null,null,null,null,null,null,null,null,"¿Qué actividades realiza?"]
[null,null,"Sí",null," No  "]
[null,null,null,null,null,null,null,null,null,null,null,null,null,null,null,"Acompañamiento en el proceso de aprendizaje"]
[null,null,null,null,"¿Que Institución le brindó el acompañamiento?",null,null,null,null,null,null,null,null,null,null,"Actividades que fortalecen las competencias parentales"]
[null,null,null,null,"DRE",null,null,null,null,null,null,null,null,null,null,"Vínculos afectivos con hijos e hijas"]
[null,null,null,null,"UGEL",null,null,null,null,null,null,null,null,null,null,"Jornadas con madres y padres"]
[null,null,null,null,"MINEDU",null,null,null,null,null,null,null,null,null,null,"Otros"]
[null,null,null,null,"OTROS"]
[]
[null,"112. DURANTE EL AÑO 2020, EL EQUIPO DIRECTIVO DE ESTE NIVEL/SERVICO EDUCATIVO"]
[null,null,"¿HA AREALIZADO EL MONITOREO A LA PRÁCTICA PEDAGÓGICA DE LOS DOCENTES?",null,null,null,null,null,null,null,null,null,"120. DE LAS ACTIVIDADES QUE REALIZA CON FAMILIAS Y COMUNIDAD, ¿POR LO"]
[null,null,null,null,null,null,null,null,null,null,null,null,null,"MENOS UNA DE ELLAS TIENE COMO EJE PRINCIPAL LA EDUCACIÓN SEXUAL"]
[null,null,"Sí",null,null,"\n¿A cuántos",null,null,"Todos los docentes",null,null,null,null,"INTEGRAL (ESI)?"]
[null,null,null,null,null,"\ndocentes?",null,null,"Más del 50% de docentes"]
[null,null,null,null,null,null,null,null,"Menos del 50% de docentes",null,null,null,null," Sí",null," No  "]
[]
[null,null," No  ",null,null,"Pase a la pregunta 114."]
[]
[null,"113. DURANTE EL AÑO 2020, ¿CUÁNTAS REUNIONES EN PROMEDIO POR SEMANA",null,null,null,null,null,null,null,null,null,null,"121. ¿HA VISITADO EL PORTAL WEB PARA DIRECTIVOS EN LOS ÚLTIMOS TRES MESES?"]
[null,null,"DE TRABAJO COLEGIADO O FORMACIÓN REALIZÓ CON EL PERSONAL DE ESTE"]
[null,null,"NIVEL/SERVICO EDUCATIVO?",null,null,null,null,null,null,null,null,null,null," Sí",null," No  "]
[]
[null,null,"Promedio de reuniones por semana con docentes",null,null,null,null,null,null,null,null,null,null,null,null,"¿La información encontrada en el portal web para directivos "]
[null,null,null,null,null,null,null,null,null,null,null,null,null,null,null," le resultó de utilidad?"]
[null,null,"Promedio de reuniones por semana con no docentes"]
[null,null,null,null,null,null,null,null,null,null,null,null,null,null,null," Sí  ",null,null," No  "]
[null,"114. ¿DURANTE LOS ÚLTIMOS 5 AÑOS, EL PERSONAL DE ESTE SERVICIO/NIVEL "]
[null,null,"EDUCATIVO (YA SEA PERSONAL DIRECTIVO/JERARQUICO, PERSONAL DOCENTE,"]
[null,null,"AUXILIARES O PERSONAL ADMINISTRATIVO), HA RECIBIDO CAPACITACIÓN EN "]
[null,null,"TEMAS DE EDUCACIÓN INCLUSIVA O ATENCIÓN A LA DIVERSIDAD DE PARTE DE",null,null,null,null,null,null,null,null,null,"122. ESTE NIVEL/SERVICIO EDUCATIVO, ¿HA RECIBIDO ALGÚN TIPO DE PERSONAL"]
[null,null,"ESPECIALISTAS DE DRE/GRE Y/O UGEL, O ALGUNA OTRA INSTITUCIÓN?",null,null,null,null,null,null,null,null,null,null,"DURANTE EL PROCESO DE MATRÍCULA EXCEPCIONAL 2022?"]
[null,null,null,null,null,null,null,null,null,null,null,null,null,"(Especifique “Sí” o “No” recibió algún tipo de personal y luegoconsigne la cantidad recibida)"]
[null,null,"Sí","",null,null,"No"]
[null,null,null,null,null,null,null,null,null,null,null,null,null,"Nro.","Tipo de personal",null,null,null,"¿Recibió?",null,"¿Cuántos recibió?"]
[null,null,null,null,"¿Qué instancia o institución brindó la capacitación?",null,null,null,null,null,null,null,null,null,null,null,null,null,"Sí","No"]
[null,null,null,null,null,null,null,null,null,null,null,null,null,1,"Director"]
[null,null,null,null,null,"","MINEDU",null,null,null,null,null,null,2,"Sub-director"]
[null,null,null,null,null,"","DRE/GRE",null,null,null,null,null,null,3,"Personal docente"]
[null,null,null,null,null,"","UGEL",null,null,null,null,null,null,4,"Personal administrativo"]
[null,null,null,null,null,"","Organizaciones sin fines de lucro/ONG",null,null,null,null,null,null,null,null,null,null,null,{"$f":"COUNTIF(S150:T153,\"SI\") + COUNTIF(S150:T153,\"NO\")","v":0}]
[null,null,null,null,null,"","Entidad privada, como auspicio"]
[null,null,null,null,null,"","Inversión propia"]
[null,null,null,null,null,"","Otro","",null,null,null,null,"123. DURANTE EL AÑO 2021, EL EQUIPO DIRECTIVO DE ESTE SERVICIO/NIVEL "]
[null,null,null,null,null,null,null,null,null,null,null,null,null,"EDUCATIVO ¿HA REALIZADO EL MONITOREO A LA PRÁCTICA PEDAGÓGICAS"]
[null,"115. ¿QUÉ ESTRATEGIAS FORMATIVAS VIRTUALES PRIORIZARÍA SOBRE TEMAS",null,null,null,null,null,null,null,null,null,null,null,"DE LOS PROFESIONALES NO DOCENTES (TECNOLOGOS MEDICOS, PSICOLOGOS,"]
[null,null,"DE EDUCACIÓN INCLUSIVA O ATENCIÓN A LA DIVERSIDAD?",null,null,null,null,null,null,null,null,null,null,"PROFESIONAL DE SALUD Y OTROS)"]
[]
[null,null,null,"Curso virtual tutorado",null,null,null,null,null,null,null,null,null," Sí",null," No  "]
[null,null,null,"Curso virtual autoformativo",null,null,null,null,null,null,null,null,null,null,null,null,""]
[null,null,null,"Grupo o círculo de interaprendizaje",null,null,null,null,null,null,null,null,null,null,null,"¿Qué instancia o institución brindó la capacitación?",""]
[null,null,null,"Comunidades profesionales de apendizaje",null,null,null,null,null,null,null,null,null,null,null,null,""]
[null,null,null,"Asesoría personalizada",null,null,null,null,null,null,null,null,null,null,null,null,null,"Todos los no docentes"]
[null,null,null,"Pasantia",null,null,null,null,null,null,null,null,null,null,null,null,null,"Más del 50% de no docentes"]
[null,null,null,"Otros especifique",null,null,null,null,null,null,null,null,null,null,null,null,null,"Menos del 50% de no docentes"]
[]
[]
[{"$f":"CONCATENATE(I37,N37)","v":""},"LOGÍSTICA POR COVID-19 (SOLO PARA GESTIÓN PÚBLICA)"]
[null,"124. ¿HA RECIBIDO EL KIT COVID-19 (MASCARILLA KN95, 02 MASCARILLAS",null,null,null,null,null,null,null,null,null,null,"125. LOS ESTUDIANTES DE ESTE SERVICIO/NIVEL EDUCATIVO QUE ASISTEN"]
[null,null,"POR SEMANA) PARA EL PERSONAL QUE LABORA PRESENCIALMENTE EN EL",null,null,null,null,null,null,null,null,null,null,"PRESENCIALMENTE, ¿HAN RECIBIDO EL KIT COVID-19 CONFORMADO POR:"]
[null,null,"SERVICIO/NIVEL EDUCATIVO?",null,null,null,null,null,null,null,null,null,null,"MASCARILLAS TEXTILES (3 MASCARILLAS POR CADA 2 MESES) O MASCARILLAS "]
[null,null,null,null,null,null,null,null,null,null,null,null,null,"QUIRÚRGICAS (1 MASCARILLA DIARIA)?"]
[null,null,"Sí",null,null,null,"No"]
[null,null,null,null,null,null,null,null,null,null,null,null,null,"Sí",null,null,null,"No"]
[null,null,null,null,"¿Estos insumos son suficientes para asignarlos a todo el personal"]
[null,null,null,null,"que labora presencialemente en la I.E.?",null,null,null,null,null,null,null,null,null,null,"¿Estos insumos son suficientes para asignarlos a todos las/los"]
[null,null,null,null,null,null,null,null,null,null,null,null,null,null,null,"estudiantes que asiste presencialemente a la I.E.?"]
[null,null,null,null,"Sí   ",null,null,"No  "]
[null,null,null,null,null,null,null,null,null,null,null,null,null,null,null,"Sí   ",null,null,"No  "]
[]
[]
[null,"126. ESTE SERVICIO/NIVEL EDUCATIVO, ¿CUENTA CON EL KIT DE HIGIENE PARA LAVADO DE MANOS CUYA ENTREGA ES GESTIONADA POR EL MINISTERIO DE EDUCACIÓN?"]
[]
[null,null,"Sí",null,null,null,null,"No",null,null,null,"¿Por qué motivo?",null,"(Marque con una ‘’X’’, una opción)"]
[null,null,null,null,null,null,null,null,null,null,null,null,null,null,null,"No está focalizado o no es beneficiario"]
[null,null,null,null,null,null,null,null,null,null,null,null,null,null,null,"Otro motivo"]

{"sheet":"C200","index":2,"n_rows":102,"n_cols":26,"rows_kept":102,"cut":false,"hidden":false,"merged":[[85,2,86,4],[33,2,35,8],[87,2,87,4],[51,9,52,10],[68,11,68,16],[69,11,69,12],[69,13,69,14],[69,15,69,16],[52,11,52,12],[52,13,52,14],[52,15,52,16],[101,6,101,7],[96,6,96,7],[94,6,94,7],[95,6,95,7],[97,6,97,7],[98,6,98,7],[99,6,99,7],[100,6,100,7],[96,10,99,15],[29,2,29,3],[68,2,70,8],[66,4,66,18],[49,4,49,18],[51,2,53,8],[51,11,51,18],[31,4,31,20],[52,17,52,18],[85,5,86,6],[95,10,95,15],[87,5,87,6],[88,5,88,6],[85,7,85,12],[89,5,89,6],[68,9,69,10],[1,5,1,22],[2,5,2,22],[34,21,34,22],[34,17,34,18],[33,9,34,10],[34,11,34,12],[34,13,34,14],[34,15,34,16],[34,19,34,20],[10,4,12,5],[11,22,12,23],[11,6,11,7],[11,8,11,11],[10,6,10,25],[6,2,6,25],[17,2,17,3],[15,2,15,3],[16,2,16,3],[12,12,12,13],[11,16,12,17],[11,12,11,15],[12,8,12,9],[12,6,12,7],[12,14,12,15],[11,24,12,25],[28,2,28,3],[21,2,21,3],[25,2,25,3],[11,20,12,21],[18,2,18,3],[19,2,19,3],[23,2,23,3],[24,2,24,3],[20,2,20,3],[26,2,26,3],[22,2,22,3],[27,2,27,3],[11,18,12,19],[10,2,13,3],[12,10,12,11]]}
[]
[null,null,null,null,null,"CENSO EDUCATIVO 2022"]
[null,null,null,null,null,"MATRÍCULA, DOCENTES Y RECURSOS"]
[]
[]
[]
[null,null,"200. MATRÍCULA Y SECCIONES"]
[]
[null,null,"CUADRO 201",null,"MATRÍCULA POR EDAD Y SEXO, SEGÚN TIPO DE DISCAPACIDAD U OTRA CONDICIÓN"]
[]
[null,null,"Edad en años cumplidos al 31-03-2022",null,"TOTAL",null,"TIPO DE DISCAPACIDAD U OTRA CONDICIÓN"]
[null,null,null,null,null,null,"DISCAPACIDAD INTELECTUAL",null,"DISCAPACIDAD AUDITIVA",null,null,null,"DISCAPACIDAD VISUAL",null,null,null,"DISCAPACIDAD FÍSICA O MOTORA",null,"TRANSTORNO DEL ESPECTRO AUTISTA (TEA)",null,"SORDO CEGUERA",null,"MULTIDIS- CAPACIDAD\n(MDE)",null,"OTRA DISCAPACIDAD U OTRA CONDICIÓN"]
[null,null,null,null,null,null,"RM Severa",null,"Hipoacusia",null,"Sordera Total",null,"Baja Visión",null,"Ceguera"]
[null,null,null,null,"H","M","H","M","H","M","H","M","H","M","H","M","H","M","H","M","H","M","H","M","H","M"]
["00",null,"TOTAL",null,{"$f":"SUM(E16:E30)","v":0},0,0,0,0,0,0,0,0,0,0,0,0,0,0,0,0,0,{"$f":"SUM(W16:W30)","v":0},{"$f":"SUM(X16:X30)","v":0},0,0]
["06",null,6,null,{"$f":"G16+I16+K16+M16+O16+Q16+S16+U16+W16+Y16","v":0},{"$f":"H16+J16+L16+N16+P16+R16+T16+V16+X16+Z16","v":0}]
["07",null,7,null,{"$f":"G17+I17+K17+M17+O17+Q17+S17+U17+W17+Y17","v":0},{"$f":"H17+J17+L17+N17+P17+R17+T17+V17+X17+Z17","v":0}]
["08",null,8,null,0,0]
["09",null,9,null,0,0]
["10",null,10,null,0,0]
["11",null,11,null,0,0]
["12",null,12,null,0,0]
["13",null,13,null,0,0]
["14",null,14,null,0,0]
["15",null,15,null,0,0]
["16",null,16,null,0,0]
["17",null,17,null,0,0]
["18",null,18,null,0,0]
["19",null,19,null,0,0]
["20",null,20,null,0,0]
[]
[null,null,"CUADRO 202",null,"MATRÍCULA POR GRADO DE ESTUDIO Y SEXO, SEGÚN TIPO DE DISCAPACIDAD U OTRA CONDICIÓN"]
[]
[null,null,"TIPO DE DISCAPACIDAD U OTRA CONDICIÓN",null,null,null,null,null,null,"TOTAL",null,"GRADO DE ESTUDIO Y SEXO"]
[null,null,null,null,null,null,null,null,null,null,null,"1º",null,"2º",null,"3º",null,"4º",null,"5º",null,"6º"]
[null,null,null,null,null,null,null,null,null,"H","M","H","M","H","M","H","M","H","M","H","M","H","M"]
["00",null,"TOTAL",null,null,null,null,null,null,{"$f":"SUM(J38:J47)","v":0},0,0,0,0,0,0,0,0,0,0,0,0,0]
["01",null,"DISCAPACIDAD INTELECTUAL - Severa",null,null,null,null,null,null,{"$f":"L38+N38+P38+R38+T38+V38","v":0},{"$f":"M38+O38+Q38+S38+U38+W38","v":0},null,null,null,null,null,null,null,null,null,null,null,null,null,{"$f":"G15","v":0},{"$f":"H15","v":0}]
["02",null,"DISCAPACIDAD AUDITIVA - Hipoacusia",null,null,null,null,null,null,0,0,null,null,null,null,null,null,null,null,null,null,null,null,null,{"$f":"I15","v":0},{"$f":"J15","v":0}]
["03",null,"DISCAPACIDAD AUDITIVA - Sordera",null,null,null,null,null,null,0,0,null,null,null,null,null,null,null,null,null,null,null,null,null,{"$f":"K15","v":0},{"$f":"L15","v":0}]
["04",null,"DISCAPACIDAD VISUAL - Baja Visión",null,null,null,null,null,null,0,0,null,null,null,null,null,null,null,null,null,null,null,null,null,{"$f":"M15","v":0},{"$f":"N15","v":0}]
["05",null,"DISCAPACIDAD VISUAL - Ceguera",null,null,null,null,null,null,0,0,null,null,null,null,null,null,null,null,null,null,null,null,null,{"$f":"O15","v":0},{"$f":"P15","v":0}]
["06",null,"DISCAPACIDAD FÍSICA O MOTORA",null,null,null,null,null,null,{"$f":"L43+N43+P43+R43+T43+V43","v":0},0,null,null,null,null,null,null,null,null,null,null,null,null,null,{"$f":"Q15","v":0},{"$f":"R15","v":0}]
["07",null,"TRANSTORNO DEL ESPECTRO AUTISTA (TEA)",null,null,null,null,null,null,0,0,null,null,null,null,null,null,null,null,null,null,null,null,null,{"$f":"S15","v":0},{"$f":"T15","v":0}]
["08",null,"SORDOCEGUERA",null,null,null,null,null,null,0,0,null,null,null,null,null,null,null,null,null,null,null,null,null,{"$f":"U15","v":0},{"$f":"V15","v":0}]
["09",null,"MULTIDISCAPACIDAD (MDE)",null,null,null,null,null,null,0,0,null,null,null,null,null,null,null,null,null,null,null,null,null,{"$f":"W15","v":0},{"$f":"X15","v":0}]
["10",null,"OTRA DISCAPACIDAD U OTRA CONDICIÓN",null,null,null,null,null,null,0,0,null,null,null,null,null,null,null,null,null,null,null,null,null,{"$f":"Y15","v":0},{"$f":"Z15","v":0}]
[null,null,"Nota: Los totales de esta tabla deben ser iguales a los de la tabla 201."]
[]
[null,null,"CUADRO 203",null,"MATRÍCULA POR TIPO DE DOCUMENTO DE EVIDENCIA Y SEXO, SEGÚN TIPO DE DISCAPACIDAD U OTRA CONDICIÓN"]
[]
[null,null,"TIPO DE DISCAPACIDAD U OTRA CONDICIÓN",null,null,null,null,null,null,"TOTAL",null,"DOCUMENTO DE EVIDENCIA"]
[null,null,null,null,null,null,null,null,null,null,null,"Certificado de Discapacidad",null,"Informe o Certificado Médico\nde profesional o institución",null,"Informe\nPsicopedagógico",null,"Declaración Jurada\nPadre/Madre/Tutor"]
[null,null,null,null,null,null,null,null,null,"H","M","H","M","H","M","H","M","H","M"]
["00",null,"TOTAL",null,null,null,null,null,null,{"$f":"SUM(J56:J65)","v":0},0,0,0,0,0,0,0,0,0]
["01",null,"DISCAPACIDAD INTELECTUAL - Severa",null,null,null,null,null,null,{"$f":"L56+N56+P56+R56","v":0},0]
["02",null,"DISCAPACIDAD AUDITIVA - Hipoacusia",null,null,null,null,null,null,0,0]
["03",null,"DISCAPACIDAD AUDITIVA - Sordera",null,null,null,null,null,null,0,0]
["04",null,"DISCAPACIDAD VISUAL - Baja Visión",null,null,null,null,null,null,0,0]
["05",null,"DISCAPACIDAD VISUAL - Ceguera",null,null,null,null,null,null,0,0]
["06",null,"DISCAPACIDAD FÍSICA O MOTORA",null,null,null,null,null,null,{"$f":"L61+N61+P61+R61","v":0},0]
["07",null,"TRANSTORNO DEL ESPECTRO AUTISTA (TEA)",null,null,null,null,null,null,0,0]
["08",null,"SORDOCEGUERA",null,null,null,null,null,null,0,0]
["09",null,"MULTIDISCAPACIDAD (MDE)",null,null,null,null,null,null,0,0]
["10",null,"OTRA DISCAPACIDAD U OTRA CONDICIÓN",null,null,null,null,null,null,{"$f":"L65+N65+P65+R65","v":0},{"$f":"M65+O65+Q65+S65","v":0}]
[]
[null,null,"CUADRO 204",null,"MATRÍCULADOS QUE SE ENCUENTREN EN SITUACIÓN DE HOSPITALIZACIÓN AL MOMENTO DEL REPORTE DEL CENSO EDUCATIVO 2022, SEGÚN TIPO DE DISCAPACIDAD U OTRA CONDICIÓN"]
[]
[null,null,"TIPO DE DISCAPACIDAD U OTRA CONDICIÓN",null,null,null,null,null,null,"TOTAL",null,"Estudiantes en situación de hospitalización"]
[null,null,null,null,null,null,null,null,null,null,null,"Menos de 15 días de hospitalización",null,"De 15 a 30 días de hospitalización",null,"Más de 30 días de hospitalización"]
[null,null,null,null,null,null,null,null,null,"H","M","H","M","H","M","H","M"]
["00",null,"TOTAL",null,null,null,null,null,null,{"$f":"SUM(J73:J82)","v":0},0,0,0,0,0,0,0]
["01",null,"DISCAPACIDAD INTELECTUAL - Severa",null,null,null,null,null,null,{"$f":"L73+N73+P73","v":0},{"$f":"M73+O73+Q73","v":0}]
["02",null,"DISCAPACIDAD AUDITIVA - Hipoacusia",null,null,null,null,null,null,{"$f":"L74+N74+P74","v":0},{"$f":"M74+O74+Q74","v":0}]
["03",null,"DISCAPACIDAD AUDITIVA - Sordera",null,null,null,null,null,null,{"$f":"L75+N75+P75","v":0},{"$f":"M75+O75+Q75","v":0}]
["04",null,"DISCAPACIDAD VISUAL - Baja Visión",null,null,null,null,null,null,0,0]
["05",null,"DISCAPACIDAD VISUAL - Ceguera",null,null,null,null,null,null,0,0]
["06",null,"SORDOCEGUERA",null,null,null,null,null,null,0,0]
["07",null,"TRANSTORNO DEL ESPECTRO AUTISTA (TEA)",null,null,null,null,null,null,0,0]
["08",null,"MULTIDISCAPACIDAD (MDE)",null,null,null,null,null,null,0,0]
["09",null,"DISCAPACIDAD FÍSICA",null,null,null,null,null,null,0,0]
["10",null,"OTRAS NEE ASOCIADAS A DISCAPACIDAD",null,null,null,null,null,null,0,0]
[]
[null,null,"CUADRO 205",null,"NÚMERO TOTAL DE SECCIONES POR GRADO DE ESTUDIO, SEGÚN TURNO"]
[]
[null,null,"TURNO",null,null,"TOTAL\nSECCIONES",null,"GRADO DE ESTUDIO"]
[null,null,null,null,null,null,null,"1º","2º","3º","4º","5º","6º"]
["00",null,"TOTAL",null,null,{"$f":"SUM(H88:M88)","v":0},null,{"$f":"SUM(H89:H90)","v":0},0,0,0,0,0]
["01",null,"Mañana",null,null,{"$f":"SUM(H89:M89)","v":0}]
["02",null,"Tarde",null,null,{"$f":"SUM(H90:M90)","v":0}]
[]
[]
[null,null,"CUADRO 206",null,"¿QUÉ GRADOS ATENDIDOS CUENTAN CON BIBLIOTECA DE AULA?"]
[null,null,"(Marque con un aspa “X” el grado correspondiente y anote el número total de ejemplares según corresponda)"]
[null,null,null,"","Edad atendida",null,"N° Total de\nEjemplares"]
["01",null,null,null,"1º Grado",null,null,null,null,null,"Nota :"]
["02",null,null,null,"2º Grado",null,null,null,null,null,"Las bibliotecas de aula están constituidas por libros, láminas y otros materiales didácticos similares, puestos al alcance de los estudiantes del aula."]
["03",null,null,null,"3º Grado"]
["04",null,null,null,"4º Grado"]
["05",null,null,null,"5º Grado"]
["06",null,null,null,"6º Grado"]
["07",null,null,null,"Ninguna edad",null,{"$f":"SUM(G96:H101)","v":0}]

{"sheet":"C300","index":3,"n_rows":184,"n_cols":67,"rows_kept":184,"cut":false,"hidden":false,"merged":[[14,29,14,30],[16,43,16,44],[16,45,16,46],[14,40,14,51],[16,47,17,47],[16,48,17,48],[15,35,17,35],[15,38,17,38],[15,39,17,39],[16,50,17,50],[15,36,17,36],[15,34,17,34],[16,51,17,51],[15,40,15,51],[15,37,17,37],[16,40,16,42],[16,54,17,54],[14,52,14,55],[14,56,14,58],[15,52,15,55],[15,56,15,58],[16,52,17,52],[16,53,17,53],[16,55,17,55],[16,56,17,56],[16,57,16,58],[7,10,7,23],[15,14,15,15],[15,10,17,10],[15,19,17,19],[15,16,17,16],[15,17,17,17],[15,18,17,18],[14,14,14,15],[15,22,17,22],[15,23,17,23],[15,20,17,20],[15,21,17,21],[16,49,17,49],[15,24,17,24],[15,32,17,32],[15,33,17,33],[15,31,17,31],[15,29,16,30],[15,25,17,25],[15,26,17,26],[15,28,17,28],[15,27,17,27],[14,59,14,62],[15,59,15,62],[16,59,16,62],[15,63,16,63],[15,64,17,64]]}
[]
[null,null,null,null,null,null,null,null,null,null,"CENSO EDUCATIVO 2022"]
[null,null,null,null,null,null,null,null,null,null,"MATRÍCULA, DOCENTES Y RECURSOS"]
[]
["PERSONAL",{"$f":"N10+U10+W10","v":0}]
[]
["DOCENTES",{"$f":"COUNTIF(Q19:Q118,\"01: Docente\")","v":0},null,null,null,null,null,null,null,null,"300. PERSONAL DOCENTE, ADMINISTRATIVO Y AUXILIARES DE EDUCACIÓN"]
["AUXILIARES",{"$f":"COUNTIF(Q19:Q118,\"03: Aux. de Educación\")","v":0},null,null,null,null,null,null,null,null,"En esta tabla, REGISTRE a todo el personal docente, auxiliares de educación y personal administrativo que se encuentre laborando en el servicio/nivel educativo durante el periodo\nde reporte del censo educativo. (EXCLUYA al personal que se encuentre haciendo uso de licencia y a los que han sido destacados a otra IE/DRE/UGEL)"]
["ADMINISTRATIVOS",{"$f":"COUNTIF(Q19:Q118,\"02: Administrativo\")","v":0}]
["DOCENTE DE AULA",{"$f":"COUNTIF(AJ19:AJ118,\"04: (111)-Docente de Aula\")","v":0},null,null,null,null,null,null,null,null,null,null,"TOTAL DOCENTES :  ",null,null,"DOCENTES DE AULA :   ",null,null,null,"AUX. DE EDUCACIÓN :  ",null,"ADMINISTRATIVOS :  "]
["DOCENTES CON SECCIÓN",{"$f":"COUNTIF(AN19:AN118,\"SI\")","v":0}]
[null,{"$f":"B7+B8+B9","v":0},null,null,null,null,null,null,null,null,"A continuación registre a todo el personal que desempeñe funciones docentes en el Servicio/Nivel educativo: Directivos con o sin aula a cargo, docentes de aula, jefes o jerárquicos, especiales (ed. física, computación, etc.)"]
[null,null,null,null,null,null,null,null,null,null,"Documentos fuente: Legajo de personal y CAP de la institución educativa."]
[null,null,3,4,5,6,7,8,9]
[null,null,null,null,null,null,null,null,null,null,301,null,null,null,302,null,303,304,305,306,307,308,309,310,311,312,313,314,315,316,null,317,318,319,320,321,322,323,324,325,326,null,null,null,null,null,null,null,null,null,null,null,327,null,null,null,328,null,null,329,null,null,null,330,331]
["GESTION PRIVADA",{"$f":"IF(OR('C100'!I37=\"X\",'C100'!N37=\"X\"),1,IF('C100'!S37=\"X\",3,\"\"))","v":""},null,null,null,null,null,null,null,null,"Nº",null,null,null,"Documento de Identidad",null,"Tipo de Personal","Edad","Sexo","Lengua Materna","¿Domina una lengua originaria?\n\nSí - No","Lengua originaria que domina","Fuente de\nfinanciamiento","Condición laboral","Modalidad del Contrado","Máximo nivel\neducativo alcanzado","Especialidad Pedagógica\nque ha estudiado","¿En qué tipo de institución obtuvo su formación pedagógica?","Segunda Especialidad","Estudios de Postgrado en Pedagogía",null,"Tiempo de servicio\n(en años)","Años de Experiencia Laboral","Años de experiencia laboral en este servicio/nivel educativo","Escala Magisterial","Función o cargo","Situación en el cargo directivo","Destaque o licencia","Jornada laboral según Nombramiento o Contrato","¿ Tiene Secciones a Cargo ?\n\nSí - No","NEE Asociadas a Discapacidad que Atiende (Marque con una “X”, según corresponda)",null,null,null,null,null,null,null,null,null,null,null,"Conocimiento de Ingles",null,null,null,"Certificación de Inglés",null,null,"¿Dónde presta el servicio?",null,null,null,"¿Tiene alguna discapa cidad?","Solo si respondió Sí en la pregunta 330 ¿Cúal es el tipo de discapa cidad?"]
[null,null,"Exp1","Exp2","Exp3","Exp4","Exp5","Exp6","Exp7",null,null," Apellido paterno"," Apellido materno"," Nombres",302.10000000000002,302.2,null,null,null,null,null,null,null,null,null,null,null,null,null,null,null,null,null,null,null,null,null,null,null,null,"Intelectual",null,null,"Auditiva",null,"Visual",null,"Discapacidad\nFísica o\nMotora","Trastorno del Espectro Autista","Sordo ceguera","Multi- discapa- cidad","Otra discapaci- dad u otra condición","No Sabe","Habla","Lee","Escribe","No Tiene","Si Tiene",null,"Marque una “X” donde corresponda"]
["303. Tipo de Personal","314. Tipo de inst. donde estudio","Corr","Escala","Gest","Secc","Fun- cion","Duplex","Fmt",null,null,null,null,null,"Tipo","Número",null,null,null,null,null,null,null,null,null,null,null,null,null,"Maestria","Doctorado",null,null,null,null,null,null,null,null,null,"Leve","Mode-rado","Severo","Hipo-\nacusia","Sordera total","Baja Visión","Ceguera",null,null,null,null,null,null,null,null,null,null,"Nacional","Interna- cional","CEBE","PRITE","SAANEE","PANETS","Sí - No"]
["01: Docente","01: IESP (Público)",1,{"$f":"IF(AND(LEFT(Q19,2)=\"01\",LEFT(W19,2)=\"01\",LEFT(X19,2)=\"01\",E19=1),1,0)","v":0},{"$f":"$B$16","v":""},{"$f":"COUNTIF(AO19:AZ19,\"X\")","v":0},{"$f":"IF(Q19<>\"\",VALUE(LEFT(Q19,2)),0)","v":0},{"$f":"IF(P19<>\"\",COUNTIF($P$19:$P$118,P19),0)","v":0},{"$f":"IF(K19<>\"\",1,0)","v":0},null,{"$f":"IF(C19<=$B$5,C19,\"\")","v":""},"","","","","","","","","","","","","","","","","","","","","","","","","","","","","","","","","","","","","","","","","","","","","","","","","","","","","","",null,{"$f":"IF($Z19<>\"\",IF(OR(LEFT($Z19,2)=\"01\",LEFT($Z19,2)=\"02\",LEFT($Z19,2)=\"04\",LEFT($Z19,2)=\"05\"),1,2),\"\")","v":""}]
["02: Administrativo","02: IESP (Privado)",2,{"$f":"IF(AND(LEFT(Q20,2)=\"01\",LEFT(W20,2)=\"01\",LEFT(X20,2)=\"01\",E20=1),1,0)","v":0},{"$f":"$B$16","v":""},{"$f":"COUNTIF(AO20:AZ20,\"X\")","v":0},{"$f":"IF(Q20<>\"\",VALUE(LEFT(Q20,2)),0)","v":0},{"$f":"IF(P20<>\"\",COUNTIF($P$19:$P$118,P20),0)","v":0},0,null,{"$f":"IF(C20<=$B$5,C20,\"\")","v":""},"","","","","","","","","","","","","","","","","","","","","","","","","","","","","","","","","","","","","","","","","","","","","","","","","","","","","","",null,{"$f":"IF($Z20<>\"\",IF(OR(LEFT($Z20,2)=\"01\",LEFT($Z20,2)=\"02\",LEFT($Z20,2)=\"04\",LEFT($Z20,2)=\"05\"),1,2),\"\")","v":""}]
["03: Aux. de Educación","03: Universidad Privada",3,0,"",0,0,0,0,null,{"$f":"IF(C21<=$B$5,C21,\"\")","v":""},"","","","","","","","","","","","","","","","","","","","","","","","","","","","","","","","","","","","","","","","","","","","","","","","","","","","","","",null,""]
[null,"04: Universidad Pública",4,0,"",0,0,0,0,null,"","","","","","","","","","","","","","","","","","","","","","","","","","","","","","","","","","","","","","","","","","","","","","","","","","","","","","","",null,""]
["305. Sexo","05: No tuvo formación superior pedagógica",5,0,"",0,0,0,0,null,"","","","","","","","","","","","","","","","","","","","","","","","","","","","","","","","","","","","","","","","","","","","","","","","","","","","","","","",null,""]
["Hombre",null,6,0,"",0,0,0,0,null,"","","","","","","","","","","","","","","","","","","","","","","","","","","","","","","","","","","","","","","","","","","","","","","","","","","","","","","",null,""]
["Mujer","315. Segunda Especialidad",7,0,"",0,0,0,0,null,"","","","","","","","","","","","","","","","","","","","","","","","","","","","","","","","","","","","","","","","","","","","","","","","","","","","","","","",null,""]
[null,"Utilice las especialidades de la tabla de códigos 313.",8,0,"",0,0,0,0,null,"","","","","","","","","","","","","","","","","","","","","","","","","","","","","","","","","","","","","","","","","","","","","","","","","","","","","","","",null,""]
["306. Lengua Materna",null,9,0,"",0,0,0,0,null,"","","","","","","","","","","","","","","","","","","","","","","","","","","","","","","","","","","","","","","","","","","","","","","","","","","","","","","",null,""]
["0100: Castellano","316. Estudios de Postgrado en Pedagogía",10,0,"",0,0,0,0,null,"","","","","","","","","","","","","","","","","","","","","","","","","","","","","","","","","","","","","","","","","","","","","","","","","","","","","","","",null,""]
["0200: Achuar","Estudios de Maestría",11,0,"",0,0,0,0,null,"","","","","","","","","","","","","","","","","","","","","","","","","","","","","","","","","","","","","","","","","","","","","","","","","","","","","","","",null,""]
["0300: Aimara","01: Concluida con grado",12,0,"",0,0,0,0,null,"","","","","","","","","","","","","","","","","","","","","","","","","","","","","","","","","","","","","","","","","","","","","","","","","","","","","","","",null,""]
["0400: Amahuaca","02: Concluida sin grado",13,0,"",0,0,0,0,null,"","","","","","","","","","","","","","","","","","","","","","","","","","","","","","","","","","","","","","","","","","","","","","","","","","","","","","","","",""]
["0500: Arabela","03: En proceso / no concluida",14,0,"",0,0,0,0,null,"","","","","","","","","","","","","","","","","","","","","","","","","","","","","","","","","","","","","","","","","","","","","","","","","","","","","","","","",""]
["0600: Ashaninka","04: Sin Maestría",15,0,"",0,0,0,0,null,"","","","","","","","","","","","","","","","","","","","","","","","","","","","","","","","","","","","","","","","","","","","","","","","","","","","","","","","",""]
["0610: Asheninka","Estudios de Doctorado",16,0,"",0,0,0,0,null,"","","","","","","","","","","","","","","","","","","","","","","","","","","","","","","","","","","","","","","","","","","","","","","","","","","","","","","","",""]
["0700: Awajún","05: Concluido con grado",17,0,"",0,0,0,0,null,"","","","","","","","","","","","","","","","","","","","","","","","","","","","","","","","","","","","","","","","","","","","","","","","","","","","","","","","",""]
["0800: Bora","06: Concluido sin grado",18,0,"",0,0,0,0,null,"","","","","","","","","","","","","","","","","","","","","","","","","","","","","","","","","","","","","","","","","","","","","","","","","","","","","","","","",""]
["0900: Kapanawa","07: En proceso / no concluido",19,0,"",0,0,0,0,null,"","","","","","","","","","","","","","","","","","","","","","","","","","","","","","","","","","","","","","","","","","","","","","","","","","","","","","","","",""]
["1000: Cashinahua","08: Sin Doctorado",20,0,"",0,0,0,0,null,"","","","","","","","","","","","","","","","","","","","","","","","","","","","","","","","","","","","","","","","","","","","","","","","","","","","","","","","",""]
["1100: Kawki",null,21,0,"",0,0,0,0,null,"","","","","","","","","","","","","","","","","","","","","","","","","","","","","","","","","","","","","","","","","","","","","","","","","","","","","","","","",""]
["1200: Chamikuro","317. Tiempo de Servicio",22,0,"",0,0,0,0,null,"","","","","","","","","","","","","","","","","","","","","","","","","","","","","","","","","","","","","","","","","","","","","","","","","","","","","","","","",""]
["1300: Ese eja","Solo personal Nombrado.",23,0,"",0,0,0,0,null,"","","","","","","","","","","","","","","","","","","","","","","","","","","","","","","","","","","","","","","","","","","","","","","","","","","","","","","","",""]
["1400: Harakbut","Tiempo contado expresado en años desde su fecha de Nombramiento",24,0,"",0,0,0,0,null,"","","","","","","","","","","","","","","","","","","","","","","","","","","","","","","","","","","","","","","","","","","","","","","","","","","","","","","","",""]
["1500: Iñapari",null,25,0,"",0,0,0,0,null,"","","","","","","","","","","","","","","","","","","","","","","","","","","","","","","","","","","","","","","","","","","","","","","","","","","","","","","","",""]
["1600: Ikitu","318. Años de Experiencia Laboral",26,0,"",0,0,0,0,null,"","","","","","","","","","","","","","","","","","","","","","","","","","","","","","","","","","","","","","","","","","","","","","","","","","","","","","","","",""]
["1700: Iskonawa","Registre el total de años que tiene como experiencia",27,0,"",0,0,0,0,null,"","","","","","","","","","","","","","","","","","","","","","","","","","","","","","","","","","","","","","","","","","","","","","","","","","","","","","","","",""]
["1800: Jaqaru","en el Tipo de Personal que se está registrando (Tabla 301.)",28,0,"",0,0,0,0,null,"","","","","","","","","","","","","","","","","","","","","","","","","","","","","","","","","","","","","","","","","","","","","","","","","","","","","","","","",""]
["1900: Kakataibo",null,29,0,"",0,0,0,0,null,"","","","","","","","","","","","","","","","","","","","","","","","","","","","","","","","","","","","","","","","","","","","","","","","","","","","","","","","",""]
["2000: Kakinte","319. Años de experiencia laboral en este servicio/ nivel educativo",30,0,"",0,0,0,0,null,"","","","","","","","","","","","","","","","","","","","","","","","","","","","","","","","","","","","","","","","","","","","","","","","","","","","","","","","",""]
["2110: Kandozi-chapra (chapra)","Anote el N° de años de experiencia prestando servicios",31,0,"",0,0,0,0,null,"","","","","","","","","","","","","","","","","","","","","","","","","","","","","","","","","","","","","","","","","","","","","","","","","","","","","","","","",""]
["2120: Kandozi-chapra (kandozi)","en este servicio/nivel educativo por el tipo de personal",32,0,"",0,0,0,0,null,"","","","","","","","","","","","","","","","","","","","","","","","","","","","","","","","","","","","","","","","","","","","","","","","","","","","","","","","",""]
["2200: Kukama kukamiria","que se está registrando (Tabla 301.)",33,0,"",0,0,0,0,null,"","","","","","","","","","","","","","","","","","","","","","","","","","","","","","","","","","","","","","","","","","","","","","","","","","","","","","","","",""]
["2300: Madija",null,34,0,"",0,0,0,0,null,"","","","","","","","","","","","","","","","","","","","","","","","","","","","","","","","","","","","","","","","","","","","","","","","","","","","","","","","",""]
["2400: Maijiki","320. Escala Magisterial",35,0,"",0,0,0,0,null,"","","","","","","","","","","","","","","","","","","","","","","","","","","","","","","","","","","","","","","","","","","","","","","","","","","","","","","","",""]
["2500: Matsés","Complete los datos de Escala Magisterial, según corresponda",36,0,"",0,0,0,0,null,"","","","","","","","","","","","","","","","","","","","","","","","","","","","","","","","","","","","","","","","","","","","","","","","","","","","","","","","",""]
["2600: Matsigenka","01: Primera",37,0,"",0,0,0,0,null,"","","","","","","","","","","","","","","","","","","","","","","","","","","","","","","","","","","","","","","","","","","","","","","","","","","","","","","","",""]
["2700: Muniche","02: Segunda",38,0,"",0,0,0,0,null,"","","","","","","","","","","","","","","","","","","","","","","","","","","","","","","","","","","","","","","","","","","","","","","","","","","","","","","","",""]
["2800: Murui-muinani","03: Tercera",39,0,"",0,0,0,0,null,"","","","","","","","","","","","","","","","","","","","","","","","","","","","","","","","","","","","","","","","","","","","","","","","","","","","","","","","",""]
["2900: Matsigenka-montetokunirira","04: Cuarta",40,0,"",0,0,0,0,null,"","","","","","","","","","","","","","","","","","","","","","","","","","","","","","","","","","","","","","","","","","","","","","","","","","","","","","","","",""]
["3000: Nomatsigenga","05: Quinta",41,0,"",0,0,0,0,null,"","","","","","","","","","","","","","","","","","","","","","","","","","","","","","","","","","","","","","","","","","","","","","","","","","","","","","","","",""]
["3100: Ocaina","06: Sexta",42,0,"",0,0,0,0,null,"","","","","","","","","","","","","","","","","","","","","","","","","","","","","","","","","","","","","","","","","","","","","","","","","","","","","","","","",""]
["3200: Omagua","07: Séptima",43,0,"",0,0,0,0,null,"","","","","","","","","","","","","","","","","","","","","","","","","","","","","","","","","","","","","","","","","","","","","","","","","","","","","","","","",""]
["3310: Quechua amazónico (Kichwa)","08: Octava",44,0,"",0,0,0,0,null,"","","","","","","","","","","","","","","","","","","","","","","","","","","","","","","","","","","","","","","","","","","","","","","","","","","","","","","","",""]
["3321: Quechua central (Ancash)","09: Sin Escala",45,0,"",0,0,0,0,null,"","","","","","","","","","","","","","","","","","","","","","","","","","","","","","","","","","","","","","","","","","","","","","","","","","","","","","","","",""]
["3322: Quechua central (Huánuco)",null,46,0,"",0,0,0,0,null,"","","","","","","","","","","","","","","","","","","","","","","","","","","","","","","","","","","","","","","","","","","","","","","","","","","","","","","","",""]
["3323: Quechua central (Wanka)","321. Función o Cargo",47,0,"",0,0,0,0,null,"","","","","","","","","","","","","","","","","","","","","","","","","","","","","","","","","","","","","","","","","","","","","","","","","","","","","","","","",""]
["3324: Quechua central (Pasco)","(Desempeñado a la fecha de reporte)",48,0,"",0,0,0,0,null,"","","","","","","","","","","","","","","","","","","","","","","","","","","","","","","","","","","","","","","","","","","","","","","","","","","","","","","","",""]
["3331: Quechua norteño (Cajamarca)","Según lista estandarizada",49,0,"",0,0,0,0,null,"","","","","","","","","","","","","","","","","","","","","","","","","","","","","","","","","","","","","","","","","","","","","","","","","","","","","","","","",""]
["3332: Quechua norteño (Inkawasi Kañaris)","01: (102)-Director",50,0,"",0,0,0,0,null,"","","","","","","","","","","","","","","","","","","","","","","","","","","","","","","","","","","","","","","","","","","","","","","","","","","","","","","","",""]
["3341: Quechua sureño (Chanka)","02: (109)-Coordinador del SAANEE",51,0,"",0,0,0,0,null,"","","","","","","","","","","","","","","","","","","","","","","","","","","","","","","","","","","","","","","","","","","","","","","","","","","","","","","","",""]
["3342: Quechua sureño (Collao)","03: (141)-Docente SAANEE",52,0,"",0,0,0,0,null,"","","","","","","","","","","","","","","","","","","","","","","","","","","","","","","","","","","","","","","","","","","","","","","","","","","","","","","","",""]
["3400: Resigaro","04: (111)-Docente de Aula",53,0,"",0,0,0,0,null,"","","","","","","","","","","","","","","","","","","","","","","","","","","","","","","","","","","","","","","","","","","","","","","","","","","","","","","","",""]
["3500: Secoya","05: (139)-Otro Docente o Jerárquico",54,0,"",0,0,0,0,null,"","","","","","","","","","","","","","","","","","","","","","","","","","","","","","","","","","","","","","","","","","","","","","","","","","","","","","","","",""]
["3600: Sharanahua",null,55,0,"",0,0,0,0,null,"","","","","","","","","","","","","","","","","","","","","","","","","","","","","","","","","","","","","","","","","","","","","","","","","","","","","","","","",""]
["3700: Shawi","06: (532)-Terapista Físico",56,0,"",0,0,0,0,null,"","","","","","","","","","","","","","","","","","","","","","","","","","","","","","","","","","","","","","","","","","","","","","","","","","","","","","","","",""]
["3800: Shipibo-Konibo","07: (537)-Terapista Ocupacional",57,0,"",0,0,0,0,null,"","","","","","","","","","","","","","","","","","","","","","","","","","","","","","","","","","","","","","","","","","","","","","","","","","","","","","","","",""]
["3900: Shiwilu","08: (533)-Terapista del Lenguaje",58,0,"",0,0,0,0,null,"","","","","","","","","","","","","","","","","","","","","","","","","","","","","","","","","","","","","","","","","","","","","","","","","","","","","","","","",""]
["4000: Taushiro","09: (503)-Personal de Salud",59,0,"",0,0,0,0,null,"","","","","","","","","","","","","","","","","","","","","","","","","","","","","","","","","","","","","","","","","","","","","","","","","","","","","","","","",""]
["4100: Ticuna","10: (501)-Psicólogo",60,0,"",0,0,0,0,null,"","","","","","","","","","","","","","","","","","","","","","","","","","","","","","","","","","","","","","","","","","","","","","","","","","","","","","","","",""]
["4200: Urarina","11: (502)-Trabajo Social / Servicio Social",61,0,"",0,0,0,0,null,"","","","","","","","","","","","","","","","","","","","","","","","","","","","","","","","","","","","","","","","","","","","","","","","","","","","","","","","",""]
["4300: Wampis","12: (504)-Administrador o Contador",62,0,"",0,0,0,0,null,"","","","","","","","","","","","","","","","","","","","","","","","","","","","","","","","","","","","","","","","","","","","","","","","","","","","","","","","",""]
["4400: Yagua","13: (538)-Guía intérprete de sordoceguera",63,0,"",0,0,0,0,null,"","","","","","","","","","","","","","","","","","","","","","","","","","","","","","","","","","","","","","","","","","","","","","","","","","","","","","","","",""]
["4500: Yaminahua","14: (539)-Intérprete de Lengua de Señas Peruana",64,0,"",0,0,0,0,null,"","","","","","","","","","","","","","","","","","","","","","","","","","","","","","","","","","","","","","","","","","","","","","","","","","","","","","","","",""]
["4600: Yanesha","15: (540)-Modelo Lingüístico",65,0,"",0,0,0,{"$f":"IF(K83<>\"\",1,0)","v":0},null,"","","","","","","","","","","","","","","","","","","","","","","","","","","","","","","","","","","","","","","","","","","","","","","","","","","","","","","","",""]
["4700: Yine","16: (505)-Otro personal profesional",66,{"$f":"IF(AND(LEFT(Q84,2)=\"01\",LEFT(W84,2)=\"01\",LEFT(X84,2)=\"01\",E84=1),1,0)","v":0},{"$f":"$B$16","v":""},{"$f":"COUNTIF(AO84:AZ84,\"X\")","v":0},{"$f":"IF(Q84<>\"\",VALUE(LEFT(Q84,2)),0)","v":0},{"$f":"IF(P84<>\"\",COUNTIF($P$19:$P$118,P84),0)","v":0},0,null,"","","","","","","","","","","","","","","","","","","","","","","","","","","","","","","","","","","","","","","","","","","","","","","","","","","","","","","","",{"$f":"IF($Z84<>\"\",IF(OR(LEFT($Z84,2)=\"01\",LEFT($Z84,2)=\"02\",LEFT($Z84,2)=\"04\",LEFT($Z84,2)=\"05\"),1,2),\"\")","v":""}]
["4800: Nahua","17: (506)-Auxiliar de Biblioteca",67,0,"",0,0,0,0,null,{"$f":"IF(C85<=$B$5,C85,\"\")","v":""},"","","","","","","","","","","","","","","","","","","","","","","","","","","","","","","","","","","","","","","","","","","","","","","","","","","","","","","",""]
["5000: Otra lengua originaria","18: (507)-Auxiliar de Laboratorios",68,0,"",0,0,0,0,null,"","","","","","","","","","","","","","","","","","","","","","","","","","","","","","","","","","","","","","","","","","","","","","","","","","","","","","","","",""]
["5100: Alemán","19: (508)-Secretaria u oficinista",69,0,"",0,0,0,0,null,"","","","","","","","","","","","","","","","","","","","","","","","","","","","","","","","","","","","","","","","","","","","","","","","","","","","","","","","",""]
["5200: Inglés","20: (511)-Asistente Administrativo",70,0,"",0,0,0,0,null,"","","","","","","","","","","","","","","","","","","","","","","","","","","","","","","","","","","","","","","","","","","","","","","","","","","","","","","","",""]
["5300: Italiano","21: (512)-Personal de Servicio - Mantenimiento",71,0,"",0,0,0,0,null,"","","","","","","","","","","","","","","","","","","","","","","","","","","","","","","","","","","","","","","","","","","","","","","","","","","","","","","","",""]
["5400: Japonés","22: (513)-Personal de Servicio - Cocina",72,0,"",0,0,0,0,null,"","","","","","","","","","","","","","","","","","","","","","","","","","","","","","","","","","","","","","","","","","","","","","","","","","","","","","","","",""]
["5500: Portugués","23: (514)-Personal de Servicio - Limpieza",73,0,"",0,0,0,0,null,"","","","","","","","","","","","","","","","","","","","","","","","","","","","","","","","","","","","","","","","","","","","","","","","","","","","","","","","",""]
["5600: Ruso","24: (516)-Personal de Servicio - Vigilante",74,0,"",0,0,0,0,null,"","","","","","","","","","","","","","","","","","","","","","","","","","","","","","","","","","","","","","","","","","","","","","","","","","","","","","","","",""]
["5700: Francés","25: (517)-Personal de Servicio - Otro",75,0,"",0,0,0,0,null,"","","","","","","","","","","","","","","","","","","","","","","","","","","","","","","","","","","","","","","","","","","","","","","","","","","","","","","","",""]
["5800: Otra lengua extranjera","26: (518)-Otro personal No profesional",76,0,"",0,0,0,0,null,"","","","","","","","","","","","","","","","","","","","","","","","","","","","","","","","","","","","","","","","","","","","","","","","","","","","","","","","",""]
[null,null,77,0,"",0,0,0,0,null,"","","","","","","","","","","","","","","","","","","","","","","","","","","","","","","","","","","","","","","","","","","","","","","","","","","","","","","","",""]
[null,"99: (999)-Auxiliar de Educación",78,0,"",0,0,0,0,null,"","","","","","","","","","","","","","","","","","","","","","","","","","","","","","","","","","","","","","","","","","","","","","","","","","","","","","","","",""]
["308. Lengua Originaria",null,79,0,"",0,0,0,0,null,"","","","","","","","","","","","","","","","","","","","","","","","","","","","","","","","","","","","","","","","","","","","","","","","","","","","","","","","",""]
["Utilice los códigos de lengua de la tabla 203",null,80,0,"",0,0,0,0,null,"","","","","","","","","","","","","","","","","","","","","","","","","","","","","","","","","","","","","","","","","","","","","","","","","","","","","","","","",""]
[null,null,81,0,"",0,0,0,0,null,"","","","","","","","","","","","","","","","","","","","","","","","","","","","","","","","","","","","","","","","","","","","","","","","","","","","","","","","",""]
["309. Fuente de Financiamiento",null,82,0,"",0,0,0,0,null,"","","","","","","","","","","","","","","","","","","","","","","","","","","","","","","","","","","","","","","","","","","","","","","","","","","","","","","","",""]
["01: Sector Educación","323. Destaque o Licencia",83,0,"",0,0,0,0,null,"","","","","","","","","","","","","","","","","","","","","","","","","","","","","","","","","","","","","","","","","","","","","","","","","","","","","","","","",""]
["02: Otro sector (FF.AA. Salud u Otro)","03: No Aplica",84,0,"",0,0,0,0,null,"","","","","","","","","","","","","","","","","","","","","","","","","","","","","","","","","","","","","","","","","","","","","","","","","","","","","","","","",""]
["03: Municipalidad",null,85,0,"",0,0,0,0,null,"","","","","","","","","","","","","","","","","","","","","","","","","","","","","","","","","","","","","","","","","","","","","","","","","","","","","","","","",""]
["04: Gobierno Regional",null,86,0,"",0,0,0,0,null,"","","","","","","","","","","","","","","","","","","","","","","","","","","","","","","","","","","","","","","","","","","","","","","","","","","","","","","","",""]
["05: APAFA",null,87,0,"",0,0,0,0,null,"","","","","","","","","","","","","","","","","","","","","","","","","","","","","","","","","","","","","","","","","","","","","","","","","","","","","","","","",""]
["06: Otra fuente Privada",null,88,0,"",0,0,0,0,null,"","","","","","","","","","","","","","","","","","","","","","","","","","","","","","","","","","","","","","","","","","","","","","","","","","","","","","","","",""]
[null,null,89,0,"",0,0,0,0,null,"","","","","","","","","","","","","","","","","","","","","","","","","","","","","","","","","","","","","","","","","","","","","","","","","","","","","","","","",""]
["310. Condición Laboral","322. Situación en el Cargo Directivo",90,0,"",0,0,0,0,null,"","","","","","","","","","","","","","","","","","","","","","","","","","","","","","","","","","","","","","","","","","","","","","","","","","","","","","","","",""]
["01: Nombrado","01: Titular ratificado por evaluación 2014",91,0,"",0,0,0,0,null,"","","","","","","","","","","","","","","","","","","","","","","","","","","","","","","","","","","","","","","","","","","","","","","","","","","","","","","","",""]
["02: Contratado","02: Titular designado por evaluación 2015, 2016 y 2018",92,0,"",0,0,0,0,null,"","","","","","","","","","","","","","","","","","","","","","","","","","","","","","","","","","","","","","","","","","","","","","","","","","","","","","","","",""]
[null,"03: Titular otro",93,0,"",0,0,0,0,null,"","","","","","","","","","","","","","","","","","","","","","","","","","","","","","","","","","","","","","","","","","","","","","","","","","","","","","","","",""]
["311. Modalidad de Contrato","04: Encargado por función, sin doc. Formal",94,0,"",0,0,0,0,null,"","","","","","","","","","","","","","","","","","","","","","","","","","","","","","","","","","","","","","","","","","","","","","","","","","","","","","","","",""]
["Contrato Público","05: Encargado",95,0,"",0,0,0,0,null,"","","","","","","","","","","","","","","","","","","","","","","","","","","","","","","","","","","","","","","","","","","","","","","","","","","","","","","","",""]
["01: A plazo fijo D. Leg. 728",null,96,0,"",0,0,0,0,null,"","","","","","","","","","","","","","","","","","","","","","","","","","","","","","","","","","","","","","","","","","","","","","","","","","","","","","","","",""]
["02: Locación de Servicios/Honorarios","323. Destaque o Licencia",97,0,"",0,0,0,0,null,"","","","","","","","","","","","","","","","","","","","","","","","","","","","","","","","","","","","","","","","","","","","","","","","","","","","","","","","",""]
["03: CAS - D. Leg. 1057","01: Cubriendo una licencia",98,0,"",0,0,0,0,null,"","","","","","","","","","","","","","","","","","","","","","","","","","","","","","","","","","","","","","","","","","","","","","","","","","","","","","","","",""]
["04: Contrato D. Leg. 276","02: De otra I.E./DRE/UGEL",99,0,"",0,0,0,0,null,"","","","","","","","","","","","","","","","","","","","","","","","","","","","","","","","","","","","","","","","","","","","","","","","","","","","","","","","",""]
["05: Contrato Ley 30328","03: No Aplica",100,0,"",0,0,0,0,null,"","","","","","","","","","","","","","","","","","","","","","","","","","","","","","","","","","","","","","","","","","","","","","","","","","","","","","","","",""]
["06: Otra modalidad","Contratado"]
["Contrato Privado","01: Cubriendo una licencia",null,null,null,null,null,null,null,null,"Limite","Limite",null,"Limite","Limite","Limite","Limite","Limite","Limite","Limite","Limite","Limite","Limite","Limite","Limite","Limite","Limite","Limite","Limite","Limite","Limite","Limite","Limite","Limite","Limite","Limite","Limite","Limite","Limite","Limite","Limite",null,null,"Limite","Limite","Limite","Limite","Limite","Limite",null,"Limite","Limite","Limite","Limite","Limite","Limite","Limite","Limite","Limite","Limite","Limite","Limite",null,null,"Limite"]
["07: A plazo indefinido (Permanente)","03: No Aplica"]
["08: Plazo fijo (Tiempo determinado)","324. Jornada Laboral (Nombramiento / Contrato)"]
["09: A tiempo parcial (por horas)","40: Horas"]
["10: Locación de Servicios/Honorarios","30: Horas"]
["11: Otra modalidad","24: Horas"]
[null,"20: Horas"]
["312. Máximo Nivel Educativo Alcanzado","19: Menos 20 horas"]
["01: Pedagógico con título"]
["02: Pedagógico sin título","330.3 ¿Cuál fue el tipo de estudios en EIB?"]
["03: Pedagógico no concluidos","01: Doctorado"]
["04: No Pedagógico con título","02: Maestría"]
["05: No Pedagógico sin título","03: Segunda especialidad"]
["06: No Pedagógico no concluidos","04: Especialización"]
["07: Secundaria","05: Actualización"]
["08: Primaria","06: Otro"]
[]
["313. Especialidad del Título","SI / NO"]
["01: Educación Inicial","SI"]
["02: Educación Primaria","NO"]
["03: E.I. Intercultural Bilingüe"]
["04: E.P. Intercultural Bilingüe"]
["05: Educación Básica Alternativa","331. ¿Cuál es el tipo de discapacidad? "]
["06: Educación Especial","01: Auditiva"]
["07: Educación Física","02: Visual"]
["08: Educación Artística","03: Física o Motora"]
["09: E.S. Lengua y Literatura","04: Otras"]
["10: E.S. especialidad Comunicación"]
["11: E.S. Matemática y Física"]
["12: E.S. especialidad Matemática"]
["13: E.S. CCSS y Filosofía"]
["14: E.S. Esp. Ciudadanía y Ciencias Sociales"]
["15: E.S. Ciencias Naturales"]
["16: E.S. especialidad Ciencia y Tecnología"]
["17: E.S. Alimentación y Nutrición"]
["18: E.S. Biología y Química"]
["19: E.S. Historia y Geografía"]
["20: E.S. CC.HH. Sociales"]
["21: Idiomas especialidad Inglés"]
["22: Educación Religiosa"]
["23: E.S. Educación Familiar"]
["24: E.T. Artes Industriales"]
["25: E.T. Artesanía"]
["26: E.T. Agropecuaria"]
["27: E.T. Construcción en madera"]
["28: Computación e Informática"]
["29: E.T. Carpintería / Ebanistería"]
["30: E.T. Electricidad"]
["31: E.T. Electrónica"]
["32: E.T. Ebanistería"]
["33: E.T. Industria del Vestido"]
["34: E.T. Industria del Vestido Alimentación y Alta Costura"]
["35: E.T. en Industria del Vestido y Alta Costura"]
["36: E.S.Técnica Esp. Ind. del Vestido Ind.Alimentaria y Artesanía"]
["37: E.T. Industria Alimentaria"]
["38: E.T. Mecánica Automotriz"]
["39: E.T. Mecánica de Producción"]
["40: E.T. Mecánica de Producción y Soldadura"]
["41: Educación para el trabajo Textil y Confección"]
["42: Otra pedagógica"]
[]
["302.1 Tipo de documento de Identidad"]
["01: DNI."]
["02: Carnet Extranjeria"]
["03: Pasaporte"]

{"sheet":"C400","index":4,"n_rows":125,"n_cols":23,"rows_kept":125,"cut":false,"hidden":false,"merged":[[1,5,1,8],[2,5,2,8],[101,3,101,4],[101,6,101,7],[102,3,102,4],[102,6,102,7],[99,3,99,4],[100,3,100,4],[100,6,100,7],[97,3,97,4],[97,6,97,7],[98,3,98,4],[98,6,98,7],[80,3,80,4],[80,6,80,7],[81,3,81,4],[81,6,81,7],[86,3,86,4],[86,6,86,7],[87,3,87,4],[87,6,87,7],[84,3,84,4],[84,6,84,7],[85,3,85,4],[103,3,103,4],[103,6,103,7],[6,2,6,10],[95,3,95,4],[95,6,95,7],[92,3,92,4],[92,6,92,7],[93,3,93,4],[93,6,93,7],[96,3,96,4],[96,6,96,7],[99,6,99,7],[90,3,90,4],[90,6,90,7],[91,3,91,4],[91,6,91,7],[88,3,88,4],[88,6,88,7],[89,3,89,4],[89,6,89,7],[94,3,94,4],[94,6,94,7],[83,3,83,4],[83,6,83,7],[85,6,85,7],[78,3,78,4],[78,6,78,7],[79,3,79,4],[79,6,79,7],[76,3,76,4],[76,6,76,7],[77,3,77,4],[77,6,77,7],[82,3,82,4],[82,6,82,7],[71,3,71,4],[71,6,71,7],[68,3,68,4],[68,6,68,7],[69,3,69,4],[69,6,69,7],[74,3,74,4],[74,6,74,7],[75,3,75,4],[75,6,75,7],[72,3,72,4],[72,6,72,7],[73,3,73,4],[73,6,73,7],[66,3,66,4],[66,6,66,7],[67,3,67,4],[67,6,67,7],[64,3,64,4],[64,6,64,7],[65,3,65,4],[65,6,65,7],[70,3,70,4],[70,6,70,7],[59,3,59,4],[59,6,59,7],[56,3,56,4],[56,6,56,7],[57,3,57,4],[57,6,57,7],[60,3,60,4],[60,6,60,7],[63,3,63,4],[63,6,63,7],[62,3,62,4],[62,6,62,7],[54,3,54,4],[54,6,54,7],[55,3,55,4],[55,6,55,7],[52,3,52,4],[52,6,52,7],[53,3,53,4],[53,6,53,7],[58,3,58,4],[58,6,58,7],[44,6,44,7],[45,3,45,4],[45,6,45,7],[50,3,50,4],[50,6,50,7],[51,3,51,4],[51,6,51,7],[48,3,48,4],[48,6,48,7],[49,3,49,4],[49,6,49,7],[32,2,33,2],[32,3,33,4],[32,5,33,5],[32,6,33,7],[35,3,35,4],[35,6,35,7],[32,14,32,15],[32,20,33,20],[32,22,33,22],[34,3,34,4],[34,6,34,7],[32,11,32,13],[32,19,33,19],[32,16,32,17],[32,8,33,8],[32,10,33,10],[32,18,33,18],[32,21,33,21],[39,3,39,4],[39,6,39,7],[36,3,36,4],[36,6,36,7],[32,9,33,9],[61,3,61,4],[61,6,61,7],[37,3,37,4],[37,6,37,7],[38,3,38,4],[38,6,38,7],[42,3,42,4],[42,6,42,7],[43,3,43,4],[43,6,43,7],[40,3,40,4],[40,6,40,7],[41,3,41,4],[41,6,41,7],[46,3,46,4],[46,6,46,7],[47,3,47,4],[47,6,47,7],[44,3,44,4]]}
[]
[null,null,null,null,null,"CENSO EDUCATIVO 2022"]
[null,null,null,null,null,"MATRÍCULA, DOCENTES Y RECURSOS"]
[]
[]
[]
[null,null,"400. SERVICIO DE APOYO Y ASESORAMIENTO PARA LA ATENCIÓN DE ESTUDIANTES CON NECESIDADES EDUCATIVAS ESPECIALES (SAANEE)"]
[]
[null,null,null,"401. ¿FUNCIONA EL SERVICIO DE APOYO Y ASESORAMIENTO DE LAS NECESIDADES EDUCATIVAS ESPECIALES (SAANEE) EN EL CEBE?"]
[]
[null,null,null,"Sí  ",null," No  ",null,"Pase a la página 14, FORTALECIMIENTO DE LA GESTIÓN"]
[]
[null,null,null,"402. ¿QUE ACTIVIDADES REALIZA EL SERVICIOS DE APOYO Y ASESORAMIENTO PARA LA ATENCIÓN DE LAS NECESIDADES EDUCATIVAS ESPECIALES (SAANEE)?"]
[null,null,null,null,"(Marque con un aspa “X” uno o más casilleros)"]
[]
[null,null,null,null,null,"Asesoramiento en la elaboración de los instrumentos de gestión del CEBE."]
[null,null,null,null,null,"Asesoramiento en la elaboración de los instrumentos de gestión de las II.EE. atendidas."]
[null,null,null,null,null,"Acompañamiento en el proceso de matrícula."]
[null,null,null,null,null,"Participación de la evaluación psicopedagógica."]
[null,null,null,null,null,"Asesora en la elaboración de adaptaciones curriculares, pedagógicas y de acceso."]
[null,null,null,null,null,"Asesora en la elaboración de materiales educativos."]
[null,null,null,null,null,"Talleres de sensibilización y capacitación con los docentes."]
[null,null,null,null,null,"Articula y asesora a los coordinadores de tutoría y orientación educativa y con el coordinador/responsable de inclusión,"]
[null,null,null,null,null,"sobre el trabajo con familias e inclusión educativa"]
[]
[null,null,null,"403. ¿TIENE SERVICIOS EDUCATIVOS INCLUSIVOS, ATENDIDOS POR EL SAANEE?"]
[]
[null,null,null,"Sí  ",null," No  ",null,"Pase a la página 14, FORTALECIMIENTO DE LA GESTIÓN"]
["SALTO"]
[]
[{"$f":"CONCATENATE(G11,G28)","v":""},null,null,"ANOTE LA INFORMACIÓN CORRESPONDIENTE A LOS SERVICIOS EDUCATIVOS INCLUSIVOS ATENDIDOS POR EL SAANEE"]
[]
[null,null,"Nº","CÓDIGO\nMODULAR",null,"NOMBRE DEL SERVICIO/NIVEL EDUCATIVO","NIVEL EDUCATIVO",null,"DISTRITO","¿Cuántos docentes apoyó o asesoró para la atención de estudiantes con NEE?","Nº de estudiantes identificados para su atención","Discapacidad Intelectual",null,null,"Discapacidad Auditiva",null,"Discapacidad Visual",null,"Discapa- cidad Física o Motora","Trans- torno del Espectro Autista","Sordo ceguera","Multi-\ndiscapa cidad\n(MDE)","Otra\nNEE"]
[{"$f":"SUM(A35:A104)","v":0},null,null,null,null,null,null,null,null,null,null,"RM Leve","RM Moderado","Severo","Hipoacusia","Sordera Total","Baja\nVisión","Ceguera"]
[{"$f":"IF(AND(D35<>\"\",F35<>\"\",G35<>\"\",I35<>\"\"),C35,0)","v":0},null,1,null,null,null,null,null,null,null,{"$f":"SUM(L35:W35)","v":0}]
[{"$f":"IF(AND(D36<>\"\",F36<>\"\",G36<>\"\",I36<>\"\"),C36,0)","v":0},null,2,null,null,null,null,null,null,null,{"$f":"SUM(L36:W36)","v":0}]
[0,null,3,null,null,null,null,null,null,null,{"$f":"SUM(L37:W37)","v":0}]
[0,null,4,null,null,null,null,null,null,null,0]
[0,null,5,null,null,null,null,null,null,null,0]
[0,null,6,null,null,null,null,null,null,null,0]
[0,null,7,null,null,null,null,null,null,null,0]
[0,null,8,null,null,null,null,null,null,null,0]
[0,null,9,null,null,null,null,null,null,null,0]
[0,null,10,null,null,null,null,null,null,null,0]
[0,null,11,null,null,null,null,null,null,null,0]
[0,null,12,null,null,null,null,null,null,null,0]
[0,null,13,null,null,null,null,null,null,null,0]
[0,null,14,null,null,null,null,null,null,null,0]
[0,null,15,null,null,null,null,null,null,null,0]
[0,null,16,null,null,null,null,null,null,null,0]
[0,null,17,null,null,null,null,null,null,null,0]
[0,null,18,null,null,null,null,null,null,null,0]
[0,null,19,null,null,null,null,null,null,null,0]
[0,null,20,null,null,null,null,null,null,null,0]
[0,null,21,null,null,null,null,null,null,null,0]
[0,null,22,null,null,null,null,null,null,null,0]
[0,null,23,null,null,null,null,null,null,null,0]
[0,null,24,null,null,null,null,null,null,null,0]
[0,null,25,null,null,null,null,null,null,null,0]
[0,null,26,null,null,null,null,null,null,null,0]
[0,null,27,null,null,null,null,null,null,null,0]
[0,null,28,null,null,null,null,null,null,null,0]
[0,null,29,null,null,null,null,null,null,null,0]
[0,null,30,null,null,null,null,null,null,null,0]
[0,null,31,null,null,null,null,null,null,null,0]
[0,null,32,null,null,null,null,null,null,null,0]
[0,null,33,null,null,null,null,null,null,null,0]
[0,null,34,null,null,null,null,null,null,null,0]
[0,null,35,null,null,null,null,null,null,null,0]
[0,null,36,null,null,null,null,null,null,null,0]
[0,null,37,null,null,null,null,null,null,null,0]
[0,null,38,null,null,null,null,null,null,null,0]
[0,null,39,null,null,null,null,null,null,null,0]
[0,null,40,null,null,null,null,null,null,null,0]
[0,null,41,null,null,null,null,null,null,null,0]
[0,null,42,null,null,null,null,null,null,null,0]
[0,null,43,null,null,null,null,null,null,null,0]
[0,null,44,null,null,null,null,null,null,null,0]
[0,null,45,null,null,null,null,null,null,null,0]
[0,null,46,null,null,null,null,null,null,null,0]
[0,null,47,null,null,null,null,null,null,null,0]
[0,null,48,null,null,null,null,null,null,null,0]
[0,null,49,null,null,null,null,null,null,null,0]
[0,null,50,null,null,null,null,null,null,null,0]
[0,null,51,null,null,null,null,null,null,null,0]
[0,null,52,null,null,null,null,null,null,null,0]
[0,null,53,null,null,null,null,null,null,null,0]
[0,null,54,null,null,null,null,null,null,null,0]
[0,null,55,null,null,null,null,null,null,null,0]
[0,null,56,null,null,null,null,null,null,null,0]
[0,null,57,null,null,null,null,null,null,null,0]
[0,null,58,null,null,null,null,null,null,null,0]
[0,null,59,null,null,null,null,null,null,null,0]
[0,null,60,null,null,null,null,null,null,null,0]
[0,null,61,null,null,null,null,null,null,null,0]
[0,null,62,null,null,null,null,null,null,null,0]
[0,null,63,null,null,null,null,null,null,null,0]
[0,null,64,null,null,null,null,null,null,null,0]
[0,null,65,null,null,null,null,null,null,null,0]
[{"$f":"IF(AND(D100<>\"\",F100<>\"\",G100<>\"\",I100<>\"\"),C100,0)","v":0},null,66,null,null,null,null,null,null,null,0]
[0,null,67,null,null,null,null,null,null,null,{"$f":"SUM(L101:W101)","v":0}]
[0,null,68,null,null,null,null,null,null,null,0]
[0,null,69,null,null,null,null,null,null,null,0]
[0,null,70,null,null,null,null,null,null,null,{"$f":"SUM(L104:W104)","v":0}]
[]
[]
[]
["Nivel"]
["A1: Inicial Cuna"]
["A2: Inicial Jardín"]
["A3: Inicial Cuna-Jardín"]
["A5: Inicial No Escolarizado"]
["B0: EBR - Primaria"]
["F0: EBR - Secundaria"]
["D1: EBA - Inicial e Intermedio"]
["D2: EBA - Avanzado"]
["E0: EBE - PRITE"]
["E1: EBE - Inicial"]
["E2: EBE - Primaria"]
["K0: IES Pedagógica"]
["P0: EES Pedagógica"]
["T0: IES Tecnológica"]
["S0: EES Tecnológica"]
["M0: ESF Artística"]
["L0: ETP - CETPRO"]

{"sheet":"C500","index":5,"n_rows":132,"n_cols":22,"rows_kept":132,"cut":false,"hidden":false,"merged":[[46,15,46,19],[91,6,92,9],[94,6,95,8],[48,2,52,3],[48,5,50,8],[48,9,50,9],[51,5,52,8],[51,9,52,9],[66,2,66,5],[66,7,66,8],[69,4,69,8],[71,15,72,18],[71,19,72,21],[73,21,75,21],[77,16,77,17],[78,16,78,17],[35,2,36,3],[29,5,30,8],[29,9,30,9],[37,9,38,9],[22,19,24,19],[31,2,34,3],[31,5,32,8],[31,9,32,9],[37,2,47,3],[37,5,38,8],[46,5,47,8],[46,9,47,9],[43,5,43,8],[40,5,40,8],[44,5,45,8],[44,9,45,9],[23,5,24,8],[23,9,24,9],[25,5,26,8],[25,9,26,9],[27,5,28,8],[27,9,28,9],[2,5,2,19],[1,5,1,19],[41,5,42,8],[41,9,42,9],[20,19,21,19],[12,19,13,19],[14,19,15,19],[16,19,17,19],[18,19,19,19],[6,1,6,21],[11,12,11,13],[11,14,11,16],[11,17,11,18],[22,2,22,3],[22,4,22,8],[23,2,30,3],[73,18,75,18],[73,19,75,19],[73,20,75,20],[79,3,79,7],[84,5,84,8],[79,16,79,17],[80,13,80,14],[80,16,80,17],[73,15,75,15],[73,16,75,17],[124,18,125,20],[126,3,126,7],[126,18,127,18],[126,19,127,20],[86,12,86,14],[86,15,86,16],[86,17,86,18],[105,2,108,4],[105,5,105,9],[105,13,105,17],[106,5,108,5],[106,6,108,6],[106,7,108,8],[106,9,108,9],[128,19,128,20],[129,19,129,20],[130,19,130,20],[131,5,131,8],[40,15,40,18],[58,18,58,20],[110,16,110,18],[110,19,110,20],[101,12,101,14],[101,15,101,16],[101,18,101,19],[92,13,92,16],[94,4,94,5],[93,8,93,9],[114,3,114,4],[124,12,127,16]]}
[]
[null,null,null,null,null,"CENSO EDUCATIVO 2022"]
[null,null,null,null,null,"MATRÍCULA, DOCENTES Y RECURSOS"]
[]
[]
[]
[null,"500. FORTALECIMIENTO DE LA GESTIÓN"]
[]
[null,"501. ESTE NIVEL/SERVICIO EDUCATIVO ¿COORDINA ALGUNA ACCIÓN CON EL",null,null,null,null,null,null,null,null,null,"504. SOBRE LA GESTIÓN DEL RIESGO DE DESASTRES Y LA SEGURIDAD EN ESTE"]
[null,null,"GOBIERNO LOCAL (DISTRITAL O PROVINCIAL) PARA MEJORAR LA",null,null,null,null,null,null,null,null,null,"NIVEL/ SERVICIO EDUCATIVO, ATIENDA LAS SIGUIENTES PREGUNTAS:"]
[null,null,"PRESTACIÓN DEL SERVICIO EDUCATIVO?"]
[null,null,null,null,null,null,null,null,null,null,null,{"$f":"SUM(L13:L25)","v":0},null,null,"PREGUNTA",null,null,null,null,"RESPUESTA"]
[null,"1: Siempre",null,"Sí    ",null,null,"No  ",null,null,"Pase a la",null,{"$f":"IF(T13<>\"\",1,0)","v":0},"¿Incorpora la Gestión del Riesgo de Desastres en los instrumentos de"]
[null,"2: Casi Siempre",null,null,null,null,null,null,null,"pregunta 503.",null,null,"Gestión y Planificación Curricular para el desarrollo de una cultura de …"]
[null,"3: A Veces",null,null,null,null,null,null,null,null,null,{"$f":"IF(T15<>\"\",1,0)","v":0},"¿El Plan de Gestión de Riesgo de Desastres contiene acciones con"]
[null,"4: Casi Nunca",null,null,null,"Con Municipalidad Distrital",null,null,null,null,null,null,"enfásis en la contingencia ante la emergencia sanitaria por Covid19?"]
[null,"5: Nunca",null,null,null,"Con Municipalidad Provincial",null,null,null,null,null,{"$f":"IF(T17<>\"\",1,0)","v":0},"Las zonas seguras para el desplazamiento de los miembros de la comu-"]
[null,null,null,null,null,"Con ambas",null,null,null,null,null,null,"nidad educativa y las rutas de evacuación ¿se encuentran señalizadas?"]
[null,null,null,null,null,null,null,null,null,null,null,{"$f":"IF(T19<>\"\",1,0)","v":0},"¿Se cuenta con el mínimo de dispositivos de seguridad"]
[null,"502. FRECUENCIA DE LA ACCION QUE AYUDA EL GOBIERNO LOCAL PARA",null,null,null,null,null,null,null,null,null,null,"para situaciones de emergencia y desastres?"]
[null,null,"MEJORAR LA PRESTACIÓN DEL SERVICIO",null,null,null,null,null,null,null,null,{"$f":"IF(T21<>\"\",1,0)","v":0},"¿Fomenta la participación, compromiso y responsabilidad"]
[null,null,null,null,null,null,null,null,null,null,null,null,"sobre la Gestión del Riesgo de Desastres en la comunidad educativa?"]
[null,{"$f":"SUM(B24:B53)","v":0},"COMPONENTE",null,"ACCIÓN",null,null,null,null,"FRECUENCIA",null,{"$f":"IF(T23<>\"\",1,0)","v":0},"¿Desarrolla actividades de soporte socioemcional como el autocuidado,"]
[null,{"$f":"IF(J24<>\"\",1,0)","v":0},"Infraestructura",null,"01","Proyecto de inversión pública para el mejoramiento o ampliación del local escolar",null,null,null,null,null,null,"la autoprotección y la resilencia en la comunidad educativa como"]
[null,null,null,null,null,null,null,null,null,null,null,null,"respuesta ante situaciones de emergencias y desastres?"]
[null,{"$f":"IF(J26<>\"\",1,0)","v":0},null,null,"02","Apoyo y asistencia técnica para el uso de recursos de mantenimiento preventivo",null,null,null,null,null,null,null,null,null,null,null,null,null,{"$f":"COUNTIF(T13:T25,\"SI\")+COUNTIF(T13:T25,\"NO\")","v":0}]
[]
[null,{"$f":"IF(J28<>\"\",1,0)","v":0},null,null,"03","Gestiones para el acceso a servicios básicos de IIEE",null,null,null,null,null,"505. EN ESTE NIVEL/SERVICIO EDUCATIVO, ¿SE CUENTA CON PERSONAL QUE"]
[null,null,null,null,null,null,null,null,null,null,null,null,"SE ENCUENTRE DENTRO DEL GRUPO DE RIESGO DE LA COVID19 SEGÚN LO"]
[null,{"$f":"IF(J30<>\"\",1,0)","v":0},null,null,"04","Adquisición de mobiliario y equipamiento para la IIEE",null,null,null,null,null,null,"DEFINIDO POR EL NUMERAL 6.1.17 DE LA RM N° 972-2020-MINSA"]
[]
[null,{"$f":"IF(J32<>\"\",1,0)","v":0},"Aprendizajes",null,"05","Proyecto de inversión pública para la mejora de los aprendizajes",null,null,null,null,null,null,"Sí    ",null,null,null,"No  "]
[]
[null,{"$f":"IF(J34<>\"\",1,0)","v":0},null,null,"06","Programas de reforzamiento escolar",null,null,null,null,null,null,null,null,"Indique la cantidad de personal del grupo de riesgo:"]
[null,{"$f":"IF(J35<>\"\",1,0)","v":0},null,null,"07","Apoyo con material educativo"]
[null,{"$f":"IF(J36<>\"\",1,0)","v":0},"Docentes",null,"08","Contratación de docentes",null,null,null,null,null,null,null,"Directivos y docentes:"]
[null,{"$f":"IF(J37<>\"\",1,0)","v":0},null,null,"09","Talleres o cursos de capacitación",null,null,null,null,null,null,null,"Administrativos y No docentes:"]
[null,{"$f":"IF(J38<>\"\",1,0)","v":0},"Gestión",null,"10","Articulación local con actores públicos y privados a nivel local"]
[null,null,null,null,null,null,null,null,null,null,null,"506. ¿CUÁL ES LA PRIMERA PALABRA QUE SE LE VIENE A LA MENTE CUANDO"]
[null,{"$f":"IF(J40<>\"\",1,0)","v":0},null,null,"11","Atención de casos en DEMUNA",null,null,null,null,null,null,"PIENSA O ESCUCHA ‘’MINISTERIO DE EDUCACIÓN’’"]
[null,{"$f":"IF(J41<>\"\",1,0)","v":0},null,null,"12","Articulación con UGEL y DRE de su ámbito",null,null,null,null,null,null,"Escriba solo una palabra"]
[null,{"$f":"IF(J42<>\"\",1,0)","v":0},null,null,"13","Gestiones para la instalación de servicios básicos de conectividad"]
[null,null,null,null,null,null,null,null,null,null,null,"507. ¿CON CUÁL DE LOS SIGUIENTES LEMAS O FRASES ASOCIA AL MINEDU?"]
[null,{"$f":"IF(J44<>\"\",1,0)","v":0},null,null,"14","Apoyo con alimentación para estudiantes",null,null,null,null,null,null,null,null,"Mejor educación, mejores peruanos"]
[null,{"$f":"IF(J45<>\"\",1,0)","v":0},null,null,"15","Vivienda y alimentación para docentes (zonas rurales, fronteras, etc)",null,null,null,null,null,null,null,null,"La educación no para"]
[null,null,null,null,null,null,null,null,null,null,null,null,null,null,"No asocio un lema específico al Minedu"]
[null,{"$f":"IF(J47<>\"\",1,0)","v":0},null,null,"16","Apoyo con movilidad local para estudiantes y docentes",null,null,null,null,null,null,null,null,"Otro"]
[]
[null,{"$f":"IF(J49<>\"\",1,0)","v":0},"Recuperación",null,"17","Promoción de acciones comunitarias para identificación de estudiantes que interrumpen estudios",null,null,null,null,null,"508. ¿CON QUÉ EMOCIONES ASOCIA CON EL MINEDU?"]
[null,null,null,null,null,null,null,null,null,null,null,null,null,null,"Positivas"]
[null,null,null,null,null,null,null,null,null,null,null,null,null,null,"Neutra"]
[null,{"$f":"IF(J52<>\"\",1,0)","v":0},null,null,"18","Impulso del registro nominal de estudiantes en Alerta Escuela por parte de directores de II.EE",null,null,null,null,null,null,null,null,"Negativas"]
[]
[null,null,null,null,null,null,null,null,null,null,null,"509. ¿QUÉ CANAL DE COMUNICACIÓN UTILIZA PARA INFORMARSE SOBRE LAS"]
[null,"503. ¿iNCORPORA LA SEGURIDAD Y DEFENSA NACIONAL EN LOS INSTRUMENTOS",null,null,null,null,null,null,null,null,null,null,"LAS NOVEDADES DEL MINEDU?"]
[null,null,"DE GESTIÓN Y PLANIFICACIÓN CURRICULAR PARA EL DESARROLLO DE UNA",null,null,null,null,null,null,null,null,null,null,null,"SIAGIE",null,null,"Programas radiales"]
[null,null,"CULTURA DE PAZ, Y FORTALECIMIENTO DE LA IDENTIDAD NACIONAL?",null,null,null,null,null,null,null,null,null,null,null,"Redes sociales",null,null,"Mensajes de texto"]
[null,null,null,null,null,null,null,null,null,null,null,null,null,null,"Portales del Minedu",null,null,"Correo electrónico"]
[null,null,null,"Sí    ",null,null,"No  ",null,null,null,null,null,null,null,"Programas televisivos",null,null,"Otro"]
[]
[]
[]
[null,"510. EN EL AÑO 2022, ¿ESTE SERVICIO/NIVEL EDUCATIVO HA REALIZADO O",null,null,null,null,null,null,null,null,null,"514. ESTE SERVICIO/NIVEL EDUCATIVO ¿CUENTA CON ALGUNA EXPERIENCIA EXITOSA O"]
[null,null,"PARTICIPADO EN ACCIONES DE SEGURIDAD Y DEFENSA NACIONAL?",null,null,null,null,null,null,null,null,null,"BUENA PRÁCTIVA DOCENTE Y/O GESTIÓN ESCOLAR ENMARCADAS EN ALGUNA DE LAS"]
[null,null,null,null,null,null,null,null,null,null,null,null,"LÍNEAS ESTRATÉGICAS?"]
[null,null,"Marque todas las opciones implementadas"]
[null,null,"Actividad",null,null,null,null,null,null,"Marcar con \"X\"",null,null,"Sí    ",null,null,"No  "]
[null,null,"Capacitaciones"]
[null,null,"Utilizado una estrategía comunicacional",null,null,null,null,null,null,null,null,null,null,null,null,"Complete la tabla"]
[null,null,"Otros",null,null,null,null,null,null,null,null,null,"(Marque con una “X” en “Sí” o “No” para cada línea estratégica e ingrese los años según corresponda)"]
[]
[null,"511. EN EL AÑO 2022, ¿ESTE SERVICIO/NIVEL EDUCATIVO HA INCORPORADO ",null,null,null,null,null,null,null,null,null,null,"Línea Estratégica",null,null,"Experiencia exitosa",null,null,null,"Buena práctica docente y/o \nGestión escolar"]
[null,null,"ACCIONES DE GESTIÓN DEL RIESGO DE EMERGENCIAS Y DESASTRES EN SUS"]
[null,null,"INSTRUMENTOS DE GESTIÓN VIGENTES?",null,null,null,null,null,null,null,null,null,null,null,null,"¿Cuenta con experiencia exitosa?","Año de la experiencia exitosa",null,"Se socializó con otras entidades","Cuenta con buena práctica?","Año de la buena práctica","Se socializó con otras entidades"]
[]
[null,null,null,"Sí    ",null,null,"No  "]
[null,null,null,null,null,null,null,null,null,null,null,null,null,null,null,"Sí - No",null,null,"Sí - No","Sí - No",null,"Sí - No"]
[null,null,null,null,null,"Precise los documentos de gestión",null,null,null,null,null,null,"a. Gestión del Riesgo de Desastres"]
[null,null,null,null,null,null,null,null,null,null,null,null,"b. Adaptación al cambio climático"]
[null,null,null,"Documentos de Gestión",null,null,null,null,null,"Marcar con \"X\"",null,null,"c. Seguridad y Defensa Nacional"]
[null,null,null,"Proyecto Educativo Institucional (PEI)",null,null,null,null,null,null,null,null,"d. Otro",""]
[null,null,null,"Plan Anual de Trabajo (PAT)",null,null,null,null,null,null,null,null,null,null,null,{"$f":"COUNTIF(P78:P81,\"SI\")+COUNTIF(P78:P81,\"NO\")","v":0},null,null,null,{"$f":"COUNTIF(T78:T81,\"SI\")+COUNTIF(T78:T81,\"NO\")","v":0}]
[null,null,null,"Proyecto Currícular Institucional (PCI)",null,"",null,null,null,null,null,"515. EN EL AÑO 2022 ¿CUÁLES SON LOS EQUIPOS Y SERVICIOS INFORMÁTICOS QUE"]
[null,null,null,"Reglamento Interno (RI)",null,null,null,null,null,null,null,null,"CUENTA ESTE SERVICIO/NIVEL EDUCATIVO PARA REPORTAR LAS EMERGENCIAS, "]
[null,null,null,"Otros",null,null,null,null,null,null,null,null,"DESASTRES Y/O PELIGRO INMINENTE?"]
[]
[null,"512. EN EL AÑO 2022, ¿ESTE SERVICIO/NIVEL EDUCATIVO CUENTA CON SU PLAN DE ",null,null,null,null,null,null,null,null,null,null,"Equipos",null,null,null,null,"Marcar con \"X\""]
[null,null,"GESTIÓN DEL RIESGO DE DESASTRES VIGENTE?",null,null,null,null,null,null,null,null,null,"PC"]
[null,null,null,null,null,null,null,null,null,null,null,null,"Tablet"]
[null,null,null,"Sí    ",null,null,"No  ",null,null,null,null,null,"Equipos Móviles"]
[null,null,null,null,null,null,null,null,null,null,null,null,"Internet"]
[null,null,null,null,null,null,"Documento de aprobación N°",null,null,null,null,null,"No se cuenta"]
[null,null,null,null,null,null,null,null,null,null,null,null,"Otros"]
[]
[null,null,null,null,null,null,"Fecha de aprobación",null,null,null,null,"516. EN EL AÑO 2022, ANTE LA DETECCIÓN DEL PELIGRO INMINENTE, EMERGENCIA"]
[null,null,null,null,null,null,null,null,null,null,null,null,"O DESASTRE ¿ESTE SERVICIO/NIVEL EDUCATIVO REALIZA LA ALERTA AL ESPACIO"]
[null,null,null,null,null,null,null,"Día","Mes","Año",null,null,"DE MONITOREO Y SEGUIMIENTO SECTORIAL (EMSS) DE LA UGEL?"]
[]
[null,null,null,null,null,null,null,null,null,null,null,null,"Sí    ",null,null,"No  "]
[null,"513. EN EL AÑO 2022 ¿LOS MIEMBROS DE ESTE SERVICIO/NIVEL EDUCATIVO HAN ",null,null,null,null,null,null,null,null,null,null,null,null,null,null,null,"¿Por qué?"]
[null,null,"SIDO CAPACITADOS EN MATERIA DE GESTIÓN INTEGRAL DEL RIESGO DE "]
[null,null,"EMERGENCIAS Y DESASTRES?",null,null,null,null,null,null,null,null,null,"Items",null,null,null,null,null,"Marcar con \"X\""]
[null,null,null,null,null,null,null,null,null,null,null,null,"No se tuvo emergencia en territorio"]
[null,null,null,"Sí    ",null,null,"No  ",null,null,null,null,null,"No se cuenta con los instrumentos y/o herramientas"]
[null,null,null,null,null,null,null,null,null,null,null,null,"No se conoce el procedimiento"]
[null,null,"Tipo de Capacitación",null,null,"Cantidad de personas capacitadas",null,null,null,null,null,null,"Otros"]
[null,null,null,null,null,"N° de Directo- res","N° de Docentes","N° de Administra- tivos",null,"N° de capacitados CEA y GRD"]
[null,null,null,null,null,null,null,null,null,null,null,"517. EN EL AÑO 2022, ¿ESTE SERVICIO/NIVEL EDUCATIVO PARTICIPÓ EN LOS "]
[null,null,null,null,null,null,null,null,null,null,null,null,"SIMULACROS CONVOCADOS POR MINEDU Y/O INDECI?"]
[null,"01","Curso",null,null,null,null,null,null,null,{"$f":"F110+G110+I110+J110","v":0}]
[null,"02","Taller",null,null,null,null,null,null,null,{"$f":"F111+G111+I111+J111","v":0},null,"Sí    ",null,null,null,"Items",null,null,"Marcar con \"X\""]
[null,"03","Charla",null,null,null,null,null,null,null,0,null,null,null,null,null,"Primer simulacro"]
[null,"04","Seminario",null,null,null,null,null,null,null,0,null,null,null,null,null,"Segundo simulacro"]
[null,"05","Webinar",null,null,null,null,null,null,null,0,null,"No  ",null,null,null,"Tercer simulacro"]
[null,"06","Otro",null,null,null,null,null,null,null,0,null,null,null,null,null,"Cuarto simulacro"]
[null,null,null,null,null,null,null,null,null,{"$f":"SUM(F110:J115)","v":0}]
[]
[null,"518. ¿ESTE SERVICIO/NIVEL EDUCATIVO, ¿HA RECIBIDO POR PARTE DE LA UGEL",null,null,null,null,null,null,null,null,null,"519. ¿ESTE SERVICIO/NIVEL EDUCATIVO, ¿CUENTA CON EL APOYO DE ALIADOS "]
[null,null,"ACCIONES DE COMUNICACIÓN PRESENCIAL O VIRTUAL PARA SENSIBILIZAR",null,null,null,null,null,null,null,null,null," ESTRATÉGICOS DE SU LOCALIDAD PARA ATENDER ALGUNO DE LOS SIGUIENTES"]
[null,null,"A LA COMUNIDAD EDUCATIVA EN TEMAS DE GESTIÓN DEL RIESGO DE DESASTRES,",null,null,null,null,null,null,null,null,null," TEMAS?"]
[null,null,"CAMBIO CLIMÁTICO Y/O SEGURIDAD Y DEFENSA NACIONAL ?"]
[null,null,null,null,null,null,null,null,null,null,null,null,"(Marque con una “X” en “Si” o “No” para cada caso y detalle al principal aliado estratégico"]
[null,null,null,"Sí    ",null,null,"No  ",null,null,null,null,null,"según corresponda)"]
[]
[null,null,null,null,null,"Indique, ¿qué acciones implementó o recibió?",null,null,null,null,null,null,"Temas por atender",null,null,null,null,null,"¿Cuenta con el apoyo de aliados estrategicos de su localidad?"]
[]
[null,null,null,"Documentos de Gestión",null,null,null,null,null,"Marcar con \"X\"",null,null,null,null,null,null,null,null,"Sí - No","Mencione al principal aliado en cada caso"]
[null,null,null,"Afiches y/o díptico y/o tríptico"]
[null,null,null,"Carteles o murales",null,null,null,null,null,null,null,null,"Gestión Integral del riesgo de emergencias"]
[null,null,null,"Ferias estudiantiles",null,null,null,null,null,null,null,null,"Adaptación al cambio climático"]
[null,null,null,"Radionovela y/o audios y/o radioteatro y/o videos …",null,null,null,null,null,null,null,null,"Seguridad y Defensa Nacional"]
[null,null,null,"Otros",null,null,null,null,null,null,null,null,null,null,null,null,null,null,{"$f":"COUNTIF(S129:S131,\"SI\")+COUNTIF(S129:S131,\"NO\")","v":0}]

{"sheet":"C600","index":6,"n_rows":142,"n_cols":19,"rows_kept":142,"cut":false,"hidden":false,"merged":[[97,2,97,6],[97,7,97,9],[97,10,97,14],[97,15,97,17],[95,15,95,17],[96,2,96,6],[96,7,96,9],[96,10,96,14],[96,15,96,17],[39,18,40,18],[41,11,48,11],[41,18,42,18],[43,18,44,18],[45,18,46,18],[47,18,48,18],[1,4,1,16],[2,4,2,16],[57,4,57,7],[33,12,33,17],[34,11,40,11],[6,1,6,18],[49,11,51,11],[49,18,50,18],[52,11,59,11],[52,18,53,18],[54,18,55,18],[56,18,57,18],[58,18,59,18],[35,18,36,18],[36,7,36,9],[37,18,38,18],[73,14,73,17],[84,4,84,7],[89,2,89,17],[95,2,95,6],[94,3,94,5],[94,7,94,9],[94,10,94,14],[94,15,94,17],[95,7,95,9],[95,10,95,14]]}
[]
[null,null,null,null,"CENSO EDUCATIVO 2022"]
[null,null,null,null,"MATRÍCULA, DOCENTES Y RECURSOS"]
[]
[]
[]
[null,"600. ACTIVIDAD FÍSICA Y DEPORTE ESCOLAR (Para II.EE. Públicas y Privadas)"]
[]
[null,"601. INDIQUE CUÁLES SON LOS MEDIOS DE COMUNICACIÓN O MULTICANALES POR LOS QUE LOS ESTUDIANTES DE ESTE NIVEL/SERVICIO EDUCATIVO,"]
[null,null,"PARTICIPAN DE LA ESTRATEGIA “APRENDO EN CASA” - AeC?"]
[null,null,null,null,null,null,null,null,null,null,"¿QUE ESTACIÓN DE RADIO USA PARA ESCUCHAR EL CONTENIDO DE AeC?"]
[null,null,null,"Radio (propia o familiar)",null,null,null,null,null,null,null,"Radio Nacional del Perú"]
[null,null,null,"Radio (autoparlantes o parlantes comunitarios)",null,null,null,null,{"$f":"CONCATENATE(C12,C13)","v":""},null,null,"Radio Regional que emite el programa"]
[null,null,null,"Televisión",null,null,null,null,null,null,null,"Radio local"]
[null,null,null,"Plataforma Web"]
[null,null,null,"WhatsApp",null,null,null,null,null,null,"LAS ACTIVIDADES PROPUESTAS EN LA WEB, ¿SON DESARROLLADAS POR LOS"]
[null,null,null,"Megáfono",null,null,null,null,null,null,"ESTUDIANTES DE LA IE?"]
[null,null,null,"Ninguno",null,"Pase a la pregunta 610.",null,null,null,null,null," Sí  ",null,null,null,"No  "]
[]
[null,"602. SOLO SI MARCO MAS DE UNA ALTERNATIVA EN LA PREGUNTA 801, INDIQUE",null,null,null,null,null,null,null,null,"606. DURANTE EL AÑO 2020, ESTE NIVEL/SERVICIO EDUCATIVO ¿COORDINA O"]
[null,null,"¿CUÁL ES LA PLATAFORMA DE MULTICANALES DE MAYOR USO POR PARTE",null,null,null,null,null,null,null,null,"ARTICULADO ALGUNA ACCIÓN CON EL GOBIERNO LOCAL PARA"]
[null,null,"DE LOS ESTUDIANTES PARA ACCEDER A LA ESTRATEGIA APRENDO EN CASA?",null,null,null,null,null,null,null,null,"INCREMENTAR EL ACCESO A LA ESTRATEGIA APRENDO EN CASA?"]
[]
[null,{"$f":"IF(C12<>\"\",C12,\"\")","v":""},null,"Radio (propia o familiar)",null,null,null,null,null,null,null," Sí  ",null,null,null,"No  ",null,"Pase a la pregunta 608."]
[null,"",null,"Radio (autoparlantes o parlantes comunitarios)",null,null,null,null,null,null,null,null,null,null,null,null,null,null,"1: Siempre"]
[null,"",null,"Televisión",null,null,null,null,null,null,null,null,null,null,null,null,null,null,"2: Casi Siempre"]
[null,"",null,"Plataforma Web",null,null,null,null,null,null,null,null,null,"Con Municipalidad Distrital",null,null,null,null,"3: A Veces"]
[null,"",null,"WhatsApp",null,null,null,null,null,null,null,null,null,"Con Municipalidad Provincial",null,null,null,null,"4: Casi Nunca"]
[null,"",null,"Megáfono",null,null,null,null,null,null,null,null,null,"Con ambas",null,null,null,null,"5: Nunca"]
[]
[null,null,null,null,null,null,null,null,null,null,"607. FRECUENCIA DE LAS ACCIONES DE AYUDA A LA ESTRATEGIA APRENDO"]
[null,"603. ¿EN QUÉ LENGUA ACCEDEN MAYORITARIAMENTE LOS ESTUDIANTES DE ESTE",null,null,null,null,null,null,null,null,null,"EN CASA, POR PARTE DEL GOBIERNO LOCAL"]
[null,null,"NIVEL/SERVICIO EDUCATIVO A LA MODALIDAD DE “APRENDO EN CASA”?"]
[null,null,null,null,null,null,null,null,null,null,{"$f":"SUM(K35:K60)","v":0},"MEDIO","ACCIÓN",null,null,null,null,null,"FRECUENCIA"]
[null,null,null,"Castellano",null,null,null,null,null,null,{"$f":"IF(S35<>\"\",1,0)","v":0},"Radio","01","Contratación y convenios con emisoras radiales."]
[null,null,null,"Lengua Originaria",null,null,null,"INDIQUE LA LENGUA ORIGINARIA",null,null,{"$f":"IF(S36<>\"\",1,0)","v":0},null,"02","Uso de radio municipal para retransmitir"]
[null,null,null,"Ambas lenguas",null,null,{"$f":"CONCATENATE(C36,C37)","v":""},null,null,null,null,null,null,"la estrategia AeC."]
[null,null,null,null,null,null,null,null,null,null,{"$f":"IF(S38<>\"\",1,0)","v":0},null,"03","Uso de altoparlantes para difusión de"]
[null,null,null,null,null,null,null,null,null,null,null,null,null,"la estrategia Aec."]
[null,"604. SEÑOR(A) DIRECTOR(A), ¿SE ENCUENTRA USTED SATISFECHO CON EL CONTENIDO",null,null,null,null,null,null,null,null,{"$f":"IF(S40<>\"\",1,0)","v":0},null,"04","Instalación y repotenciación de antenas "]
[null,null,"DE “APRENDO EN CASA”?, YA SEA EN CASTELLANO O EN LENGUA ORIGINARIA",null,null,null,null,null,null,null,null,null,null,"equipos de radio."]
[null,null,null,null,null,null,null,null,null,null,{"$f":"IF(S42<>\"\",1,0)","v":0},"TV y Cable","05","Instalación, repotenciación, reparación o"]
[null,null,"En castellano",null,null,null,"En lengua originaria",null,null,null,null,null,null,"reactivación de antenas y equipos de TV."]
[null,null,null,"Satisfecho",null,null,null,"Satisfecho",null,null,{"$f":"IF(S44<>\"\",1,0)","v":0},null,"06","Uso de antena repetidora y TV municipal"]
[null,null,null,"Poco satisfecho",null,null,null,"Poco satisfecho",null,null,null,null,null,"para retransmitir la estrategia AeC."]
[null,null,null,"Insatisfecho",null,null,null,"Insatisfecho",null,null,{"$f":"IF(S46<>\"\",1,0)","v":0},null,"07","Alquiler e instalación de antenas y equipos"]
[null,null,null,"No aplica",null,null,null,"No aplica",null,null,null,null,null,"de cable (DIRECTV)."]
[null,null,null,null,null,null,null,null,null,null,{"$f":"IF(S48<>\"\",1,0)","v":0},null,"08","Trámite para licencias de funcionamiento"]
[null,null,null,null,null,null,null,null,null,null,null,null,null,"y antenas"]
[null,"605. DE LAS SIGUIENTES CARACTERÍSTICAS ¿CUÁL O CUÁLES CONSIDERA QUE",null,null,null,null,null,null,null,null,{"$f":"IF(S50<>\"\",1,0)","v":0},"Internet","09","Instalación y ampliación del servicio de"]
[null,null,"SON LAS CARACTERÍSTICAS QUE DESCRIBEN MEJOR LAS VENTAJAS DE LA",null,null,null,null,null,null,null,null,null,null,"internet satelital."]
[null,null,"PLATAFORMA “APRENDO EN CASA”?",null,null,null,null,null,null,null,{"$f":"IF(S52<>\"\",1,0)","v":0},null,"10","Wifi gratuito en espacios públicos."]
[null,null,null,null,null,null,null,null,null,null,{"$f":"IF(S53<>\"\",1,0)","v":0},"Otros","11","Elaboración y difusión de recursos para"]
[null,null,null,"Es amigable",null,null,null,null,null,null,null,null,null,"promocionar la estrategia AeC"]
[null,null,null,"Es rápido",null,null,null,null,null,null,{"$f":"IF(S55<>\"\",1,0)","v":0},null,"12","Fotocopiado, impresión y distribución de"]
[null,null,null,"Esta bien organizado",null,null,null,null,null,null,null,null,null,"material educativo"]
[null,null,null,"Tiene buen contenido",null,null,null,null,null,null,{"$f":"IF(S57<>\"\",1,0)","v":0},null,"13","Trámite para instalar nuevas antenas y ampliar"]
[null,null,null,"Otro","",null,null,null,null,null,null,null,null,"cobertura de las existentes (Radio, Tv y celular)"]
[null,null,null,"Ninguna de las anteriores",null,null,null,null,null,null,{"$f":"IF(S59<>\"\",1,0)","v":0},null,"14","Diálogo con actores públicos y privados para"]
[null,null,null,null,null,null,null,null,null,null,null,null,null,"ampliar la cobertura y difundir la estrategia AeC"]
[null,null,null,null,null,null,null,null,null,null,null,null,null,null,null,null,null,null,{"$f":"COUNTIF(S35:S60,\"5: Nunca\")","v":0}]
[]
[null,"608. LA MAYORÍA DE LOS DOCENTES DE ESTE NIVEL/SERVICIO EDUCATIVO, ¿REALIZAN",null,null,null,null,null,null,null,null,"610. SI MARCÓ LA ALTERNATIVA “NINGUNO” EN LA PREGUNTA 601, RESPONDA:"]
[null,null,"LA RETROALIMENTACIÓN A LOS ESTUDIANTES?",null,null,null,null,null,null,null,null,"¿CUÁLES SON LOS MOTIVOS POR LOS QUE LOS ESTUDIANTES DE ESTE NIVEL/"]
[null,null,null,null,null,null,null,null,null,null,null,"SERVICIO EDUCATIVO NO ACCEDEN A “APRENDO EN CASA”?"]
[null,null,null," Sí  ",null,"No  "]
[null,null,null,null,null,null,null,null,null,null,null,null,null,"No sabe cómo acceder"]
[null,null,null,null,null,null,null,null,null,null,null,null,null,"No tiene TV o la señal es mala"]
[null,null,null,"Elemental",null,null,null,null,null,null,null,null,null,"No tiene Radio o la señal es mala"]
[null,null,null,"Descriptiva",null,null,null,null,null,null,null,null,null,"No tiene Internet o la señal es mala"]
[null,null,null,"Reflexiva por descubrimiento",null,null,null,null,null,null,null,null,null,"Usar otros recursos educativos"]
[null,null,null,null,null,null,null,null,null,null,null,null,null,"Se dedican a otras actividades productivas de la comunidad"]
[null,null,null,null,null,null,null,null,null,null,null,null,null,"No encuentra útiles los recursos de Aprendo en casa"]
[null,"609. LA MAYORIA DE LOS DOCENTES DE ESTE NIVEL/SERVICIO EDUCATIVO, ¿HAN",null,null,null,null,null,null,null,null,null,null,null,"Otro"]
[null,null,"ESTABLECIDO EL MEDIO DE COMUNICACIÓN, PARA LA COORDINACIÓN Y"]
[null,null,"ACOMPAÑAMIENTO DEL TRABAJO REMOTO CON LOS PPFF Y/O ESTUDIANTES?",null,null,null,null,null,null,null,"611. EN UN ESCENARIO DE EDUCACIÓN REMOTA ¿CUÁL ES EL MEDIO DE"]
[null,null,null,null,null,null,null,null,null,null,null,"COMUNICACIÓN PERTINENTE, QUE SEGÚN LAS CONDICIONES DE LA ZONA,"]
[null,null,null," Sí  ",null,"No  ",null,null,null,null,null,"PERMITEN LA COMUNICACIÓN Y APRENDIZAJE DE LOS ESTUDIANTES?."]
[]
[null,null,null,null,null,null,null,null,null,null,null,null,null,"Llamadas telefónicas (celular)"]
[null,null,null,"WhatsApp",null,null,null,null,null,null,null,null,null,"Whatsapp (audios o vídeos)"]
[null,null,null,"Facebook",null,null,null,null,null,null,null,null,null,"Facebook - Messenger"]
[null,null,null,"Correo electrónico",null,null,null,null,null,null,null,null,null,"Videoconferencias (Meet, Zoom, Skype, etc)"]
[null,null,null,"Llamada telefónica",null,null,null,null,null,null,null,null,null,"Correo electrónico"]
[null,null,null,"Otros",null,null,null,null,null,null,null,null,null,"Visitas domiciliarias"]
[]
[]
[null,"ANOTACIONES COMPLEMENTARIAS QUE CONSIDERE NECESARIO AGREGAR"]
[]
[]
[]
[]
[null,"DATOS DEL DIRECTOR/RESPONSABLE DEL LLENADO DE LA CÉDULA"]
[]
[null,null,null,"NOMBRES Y APELLIDOS",null,null,null,"CARGO",null,null,"CORREO ELECTRÓNICO",null,null,null,null,"TELÉFONO"]
[]
[]
[]
[]
[]
[]
[]
[]
["DIRECTOR(A)"]
["SUB DIRECTOR(A)"]
["DOCENTE"]
["COORDINADOR(A)"]
["ASESOR"]
["ADMINISTRATIVO"]
["ASISTENTE"]
["AUXILIAR"]
["SECRETARIA(O)"]
["ESTADÍSTICO"]
["ESPECIALISTA"]
["BIBLIOTECARIO"]
["CARE"]
["COMANDANTE PNP"]
["CONTADOR"]
["DAIP"]
["DIGITADOR(A)"]
["GERENTE"]
["JEFE ACADÉMICO"]
["JEFE ADMINISTRATIVO"]
["JEFE DE ÁREA"]
["JEFE DE LABORATORIO"]
["JEFE DE PERSONAL"]
["JEFE DE SEDE"]
["JEFE DE UNIDAD"]
["OFICINISTA"]
["OPERADOR DE SISTEMAS"]
["PERSONAL DE SERVICIO"]
["PROGRAMADOR"]
["PROMOTOR(A)"]
["PSICOLOGO"]
["REGISTRADOR(A)"]
["REPRESENTANTE LEGAL"]
["SOPORTE TECNOLOGICO"]
["TÉCNICO ADMINISTRATIVO"]
["TESORERO(A)"]
["TRABAJADOR SOCIAL"]
["TUTOR"]
["OTROS"]

{"sheet":"Enviar","index":7,"n_rows":9,"n_cols":4,"rows_kept":9,"cut":false,"hidden":false,"merged":[[0,1,0,4],[1,1,1,4]]}
[null,"CENSO EDUCATIVO 2022"]
[null,"MATRÍCULA, DOCENTES Y RECURSOS"]
[]
[]
[null,null,"Paso 1:","Realice el ENVÍO con su clave EOL."]
[]
[null,null,"Paso 2:","Una vez realizado el ENVÍO,  Revise su constancia de envio."]
[]
[null,null,"  ADVERTENCIA","ASEGÚRESE DE REGISTRAR TODA LA INFORMACIÓN DEL NIVEL INFORMANTE"]